Workbook

Sheet COVER
A3: BILL OF MATERIALS : FINAL (SECONDARY PLANT)
A5: MAKHATINI 2 x 3MVAr 22kV CAP BANK ESTABLISHMENT
A7: PROJECT ID No: | C7: ET-RFM-1601-3505-00001 | G7: Date: | H7: 2021-10-25
A8: WBS No: | C8: T.B.A | G8: Revision: | H8: 1
A10: NOTES :
A12: 1. This schedule is to be used for ordering purposes, only once the associated
A13: ERA has been approved.
A14: NB. Materials Management are to confirm, via a return signed copy of
A15: this document, that there are no deviations to the material and equipment
A16: stipulated. Should there be necessity to change an indicated item, this
A17: must be identified clearly on the return copy to Secondary Plant
A18: (ED Project Engineering) and only ordered subject to their approval.
A20: 2. The revisions to this document are listed as follows:
A21: Rev 0:
A22: Rev 1: | B22: Added a SAP No. for Belden armoured cable. Unit Cost increased from R90 to R130.
A23: Rev 2: | B23: Added: | C23: 1 x SERIAL TRAY WITH 1 MOXA
B24: Removed: | C24: 60m x 10 pair, 0.5mm²
C25: 30m x 20 pair, 0.5mm²
A46: Mthandeni Khuzwayo
A47: NED PROJECT ENGINEERING (P,M,DC&TC)
A48: New Germany

Sheet NED Control Plant BOM
A1: QTY | B1: TYPE | C1: MANUFACTURER | D1: SUPPLIER | E1: DESCRIPTION | F1: ENC | G1: SAP NO. | H1: UNIT COST | I1: TOTAL COST | J1: LONG LEAD
A2: HV FEEDER SCHEME (4ZD3940)
B3: 4ZD3940 Scheme | C3: ABB SOUTH AFRICA | D3: ABB SOUTH AFRICA | E3: Distance/Differential Protection Scheme (SERIAL SCADA ONLY) | F3: 4600037097 | G3: 0248559 | H3: R 141,363.00 | I3: =A3*H3 -> R 0.00 | J3: Yes
B4: Swing Frame Panel | C4: ABB SOUTH AFRICA | D4: ABB SOUTH AFRICA | E4: Swing Frame Panel with Dual Entry Ability for Schemes 4FZ39x0 and 4FZD39x0 | F4: 4600037097 | G4: 0248564 | H4: R 11,789.00 | I4: =A4*H4 -> R 0.00 | J4: Yes
B5: Additional Supervisory Binary Output Card | C5: ABB SOUTH AFRICA | D5: ABB SOUTH AFRICA | E5: Used if the Default DNP3 Protocol Supervisory Link is not Being Used | F5: 4600037097 | G5: 0248568 | H5: R 3,245.00 | I5: R 0.00 | J5: Yes
A7: RURAL FEEDER SCHEME (4RF1101)
B8: 4RF1101 Scheme | C8: ACTOM | D8: ACTOM | E8: 4RF1101 Reticulation Feeder Protection Scheme (SERIAL SCADA ONLY) | F8: 4600039646 | G8: 0224943 | H8: R 21,474.50 | I8: =A8*H8 -> R 0.00 | J8: Yes
B9: 4RF1101 Scheme | C9: ACTOM | D9: ACTOM | E9: 4RF1101 Reticulation Feeder Protection Scheme (SERIAL & HARDWIRE SCADA) | F9: 4600039646 | G9: 0224944 | H9: R 22,088.56 | I9: =A9*H9 -> R 0.00 | J9: Yes
B10: Swing Frame Panel | C10: ACTOM | D10: ACTOM | E10: Swing Frame Panel: 2400mm h x 800mm d x 600mm w | F10: 4600039646 | G10: 0224951 | H10: R 8,782.00 | I10: =A10*H10 -> R 0.00 | J10: Yes
B11: USB | C11: ACTOM | D11: ACTOM | E11: USB (PC) to DB9 male (Relay) “straight through” serial communication cable | F11: 4600039646 | G11: 0224952 | H11: R 371.00 | I11: =A11*H11 -> R 0.00 | J11: Yes
B12: 2nd Rear Comms port | C12: ACTOM | D12: ACTOM | E12: Optional Second Rear Communication port for MiCOM P145 relay | F12: 4600039646 | G12: 0224955 | H12: R 1,859.50 | I12: =A12*H12 -> R 0.00 | J12: Yes
B13: Solkor-N 7SG1816 | C13: WoodBeam | D13: WoodBeam | E13: Cable diff relay 1BL/7BO (Including 3C0contacts); 1300nm optical fibrelink (0-16km) | F13: Vendor No: 11045237 | H13: R 29,495.00 | I13: =A13*H13 -> R 0.00 | J13: Yes
B14: Crating | C14: ACTOM | D14: ACTOM | E14: Crating of one 4RF-1100 protection scheme module for transport | F14: 4600039646 | G14: 0225041 | H14: R 593.00 | I14: R 0.00 | J14: Yes
A16: TRANSFORME SCHEME (4TM7101)
B17: 4TM7101 Scheme | C17: CONCO | D17: CONCO | E17: 4TM-7100 TWO- OR THREE WINDING TRANSFORMER PROTECTION SCHEME (110V DC) | F17: 4600037464 | G17: 0246026 | H17: R 95,026.66 | I17: =A17*H17 -> R 0.00 | J17: Yes
B18: Swing Frame Panel | C18: CONCO | D18: CONCO | E18: 2400mm HIGH x 800mm WIDE x 600mm DEEP | F18: 4600037464 | G18: 0246031 | H18: R 12,915.00 | I18: R 0.00 | J18: Yes
B19: Ethernet Comms | C19: CONCO | D19: CONCO | E19: ETHERNET COMMS INTERFACE SUPPORTING THE IEC 61850 PROTOCOL FOR A SEL-487E RELAY | F19: 4600037464 | G19: 0246044 | H19: R 13,324.01 | I19: R 0.00 | J19: Yes
B20: High Impedance REF | C20: CONCO | D20: CONCO | E20: HIGH IMPEDANCE RESTRICTED EARTH FAULT | F20: 4600037464 | G20: 0246035 | H20: R 25,370.34 | I20: R 0.00 | J20: Yes
B21: Handling & Installation of 4TC5200 | C21: CONCO | D21: CONCO | E21: HANDLING AND INSTALLATION OF 1 x 4TC-5200 TAP INTO A 1 x 4TM PANEL | F21: 4600037464 | G21: 0246033 | H21: R 861.00 | I21: R 0.00 | J21: Yes
B22: Trfr Junction Box | C22: Contrep | D22: Contrep | E22: Pole/ Wall Mounted | F22: 4600004399 | G22: Buy Out Item | H22: R 13,000.00 | I22: R 0.00 | J22: Yes
A24: TAPE CHANGE SCHEME (4TC5200)
B25: 4TC5200 Scheme | C25: IST | D25: IST | E25: 4TC-5200 TAP CHANGE PROTECTION AND CONTROL SCHEME (110 VDC) | F25: 4600036968 | G25: 0246077 | H25: R 49,765.68 | I25: =A25*H25 -> R 0.00 | J25: Yes
B26: Temporary Crating of 4TC5200 | C26: IST | D26: IST | E26: TEMPORARY CRATING, TRANSPORT AND OFFLOADING OF 1 X 4TC-5200 SCHME | F26: 4600036968 | G26: 0246080 | H26: R 1,731.00 | I26: R 0.00 | J26: Yes
B27: IEC 61850 for the tap changer | C27: IST | D27: IST | E27: UPGRADE OF EBERLE REG-DA TAP CHANGE CONTROL RELAY TO INCLUDE REG-PED | F27: 4600036968 | G27: 0246086 | H27: R 6,131.00 | I27: R 0.00 | J27: Yes
A29: BUS COUPLER CONTROL SCHEME (4BC1800/1900)
B30: 4BC1800 Scheme | C30: ACTOM | D30: ACTOM | E30: 4BC1800 Bus Coupler Control Scheme | F30: 4600039646 | G30: 0224921 | H30: R 18,664.91 | I30: =A30*H30 -> R 0.00 | J30: Yes
B31: 4BC1900 Scheme | C31: ACTOM | D31: ACTOM | E31: 4BC1900 Bus Coupler Control Scheme | F31: 4600039646 | G31: 0224931 | H31: R 12,613.00 | I31: =A31*H31 -> R 0.00 | J31: Yes
B32: Swing Frame Panel | C32: ACTOM | D32: ACTOM | E32: Swing Frame Panel: 2400mm h x 800mm d x 600mm w | F32: 4600039646 | G32: 0224934 | H32: R 8,781.50 | I32: =A32*H32 -> R 0.00 | J32: Yes
B33: Anti-pump timer module | C33: ACTOM | D33: ACTOM | E33: Anti-pump timer module (4BC1900 only) | F33: 4600039646 | G33: 0224935 | H33: R 1,489.50 | I33: R 0.00 | J33: Yes
A35: BUSBAR ARC FLASH PROTECTION SCHEME (3BP4901)
B36: 3BP4901 Scheme | C36: Vamp Solutions | D36: Vamp Solutions | E36: Busprotection, indoor switchgear, 2 Zone, 2 Incommers, 8 Fdrs & 1 B/S | F36: 4600040774 | G36: 0179552 | H36: R 125,000.00 | I36: =A36*H36 -> R 0.00 | J36: Yes
B37: Arc Sensors | C37: Vamp Solutions | D37: Vamp Solutions | E37: Arc Sensor with 6m lead (VA1DA-6) | F37: 4600040774 | G37: 0175179 | H37: R 390.00 | I37: =A37*H37 -> R 0.00 | J37: Yes
B38: Slave Unit | C38: Vamp Solutions | D38: Vamp Solutions | E38: Slave unit (VAM12CD) | F38: 4600040774 | G38: 0175178 | H38: R 3,026.00 | I38: R 0.00 | J38: Yes
B39: Vamp 120 Relays | C39: Vamp Solutions | D39: Vamp Solutions | E39: Vamp 120 arc sensing relay | F39: Buy Out | G39: - | H39: R 6,500.00 | I39: R 0.00 | J39: Yes
B40: Swing Frame Panel | C40: World Power Products | D40: World Power Products | E40: Swing Frame Panel, 800mm x 600mm x 2400mm with complete earthing | F40: 4600013592 | G40: 0402613 | H40: R 8,190.00 | I40: R 0.00 | J40: Yes
A42: BUSBAR PROTECTION SCHEME (4BZ5700/5800/5900)
B43: 4BZ5700 Scheme | C43: IST | D43: IST | E43: Two zone differential protection with a check zone+ Panel. | F43: 4600025371 | G43: 0224973 | H43: R 37,272.60 | I43: =A43*H43 -> R 0.00 | J43: Yes
B44: 4BZ5800 Scheme | C44: IST | D44: IST | E44: Two zone differential protection with a check zone+ Panel. | F44: 4600025371 | G44: 0224971 | H44: R 87,702.40 | I44: R 0.00 | J44: Yes
B45: 4BZ5900 Scheme | C45: IST | D45: IST | E45: Single zone differential protection with a check zone+ Panel. | F45: 4600025371 | G45: 0224975 | H45: R 30,540.60 | I45: R 0.00 | J45: Yes
A47: Under-Frequency Load Shedding (4LS1101)
B48: 4LS1101 Scheme | C48: ACTOM | D48: ACTOM | E48: 4LS1101 UFLS Protection Scheme (Serial SCADA only) | F48: 4600026679 | G48: 0404058 | H48: R 22,071.00 | I48: =A48*H48 -> R 0.00 | J48: Yes
B49: Swing Frame Panel | C49: ACTOM | D49: ACTOM | E49: Swing Frame Panel: 2400mm h x 800mm d x 600mm w | F49: 4600026679 | G49: 0404074 | H49: R 10,094.00 | I49: =A49*H49 -> R 0.00 | J49: Yes
B50: Crating | C50: ACTOM | D50: ACTOM | E50: Crating of one 4LS1100 or 4LS1200 protection scheme module for transport | F50: 4600026679 | G50: 0225384 | H50: R 817.00 | I50: R 0.00 | J50: Yes
B51: Voltage Selection Module | C51: ACTOM | D51: ACTOM | E51: Optional Second 3-phase VT input & Voltage selection module | F51: 4600026679 | G51: 0404080 | H51: R 3,534.50 | I51: R 0.00 | J51: Yes
A53: Capacitor Bank Protection Scheme (Based on GE C70 relay scheme)
A54: 2 | B54: C70 type Scheme | E54: Modified Capacitor Bank Protection Scheme (Serial SCADA only) | G54: Buy out | H54: R 700,000.00 | I54: =A54*H54 -> R 1,400,000.00 | J54: Yes
A55: 2 | B55: Swing Frame Panel | E55: Swing Frame Panel: 2400mm h x 800mm d x 600mm w | G55: Buy out | H55: R 15,000.00 | I55: R 30,000.00 | J55: Yes
A56: 1 | B56: 2nd Rear Comms port | E56: Optional Second Rear Communication port for MiCOM P145 relay | G56: Buy out | H56: R 5,000.00 | I56: =A56*H56 -> R 5,000.00 | J56: Yes
B57: training
B58: Crating | E58: Crating of one 4CB1100 protection scheme module for transport | H58: R 817.00 | I58: R 0.00 | J58: Yes
A60: Metering (Statistical/Tarrif)
B61: Meter, Elster A1700 3Ph 1A CL0.5 | C61: - | D61: - | E61: METER 3 PH CL0.5 1A RS485 | F61: - | G61: 0242580 | H61: R 3,090.70 | I61: =A61*H61 -> R 0.00 | J61: Yes
B62: MODULE, METERING STD METER SUBPANEL | C62: Wirconn | D62: Wirconn | E62: METER MODULE PART OF STANDARD METERING PANEL | F62: 4600004977 | G62: 0175685 | H62: R 8,000.00 | I62: R 0.00 | J62: Yes
B63: VSM | C63: Wirconn | D63: Wirconn | E63: Voltage Selection Module - Type D | F63: 4600004977 | G63: 0175688 | H63: R 7,000.00 | I63: R 0.00 | J63: Yes
B64: Swing Frame Panel | C64: World Power Products | D64: World Power Products | E64: SWING FRAME CABINET * 800mm x 600mm x 2400mm | F64: - | G64: 0402613 | H64: R 8,190.00 | I64: R 0.00 | J64: Yes
B65: Plate, Blanking Protection 1U | C65: World Power Products | D65: World Power Products | E65: BLANKING PLATE * TYPE: 1U * 19" (482.6mm) RACK | F65: - | G65: 0401942 | H65: R 31.00 | I65: R 0.00 | J65: Yes
B66: Plate, Blanking Protection 2U | C66: World Power Products | D66: World Power Products | E66: BLANKING PLATE * TYPE: 2U * 19" (482.6mm) RACK | F66: - | G66: 0401944 | H66: R 40.00 | I66: R 0.00 | J66: Yes
B67: Plate, Blanking Protection 3U | C67: World Power Products | D67: World Power Products | E67: BLANKING PLATE * TYPE: 3U * 19" (482.6mm) RACK | F67: - | G67: 0401952 | H67: R 67.30 | I67: R 0.00 | J67: Yes
B68: Plate, Blanking Protection 4U | C68: World Power Products | D68: World Power Products | E68: BLANKING PLATE * TYPE: 4U * 19" (482.6mm) RACK | F68: - | G68: 0401954 | H68: R 79.60 | I68: R 0.00 | J68: Yes
B69: Plate, Blanking Protection 5U | C69: World Power Products | D69: World Power Products | E69: BLANKING PLATE * TYPE: 5U * 19" (482.6mm) RACK | F69: - | G69: 0401956 | H69: R 92.10 | I69: R 0.00 | J69: Yes
B70: Plate, Blanking Protection 6U | C70: World Power Products | D70: World Power Products | E70: BLANKING PLATE * TYPE: 6U * 19" (482.6mm) RACK | F70: - | G70: 0402097 | H70: R 103.80 | I70: R 0.00 | J70: Yes
B71: Plate, Blanking Protection 7U | C71: World Power Products | D71: World Power Products | E71: BLANKING PLATE * TYPE: 7U * 19" (482.6mm) RACK | F71: - | G71: 0401958 | H71: R 90.00 | I71: R 0.00 | J71: Yes
B72: Plate, Blanking Protection 8U | C72: World Power Products | D72: World Power Products | E72: BLANKING PLATE * TYPE: 8U * 19" (482.6mm) RACK | F72: - | G72: 0401960 | H72: R 127.20 | I72: R 0.00 | J72: Yes
B73: Plate, Blanking Protection 9U | C73: World Power Products | D73: World Power Products | E73: BLANKING PLATE * TYPE: 9U * 19" (482.6mm) RACK | F73: - | G73: 0401962 | H73: R 139.10 | I73: R 0.00 | J73: Yes
B74: Plate, Blanking Protection 10U | C74: World Power Products | D74: World Power Products | E74: BLANKING PLATE * TYPE: 10U * 19" (482.6mm) RACK | F74: - | G74: 0401964 | H74: R 150.60 | I74: R 0.00 | J74: Yes
B75: Plate, Blanking Protection 11U | C75: World Power Products | D75: World Power Products | E75: BLANKING PLATE * TYPE: 11U * 19" (482.6mm) RACK | F75: - | G75: 0401966 | H75: R 162.40 | I75: R 0.00 | J75: Yes
B76: Plate, Blanking Protection 12U | C76: World Power Products | D76: World Power Products | E76: BLANKING PLATE * TYPE: 12U * 19" (482.6mm) RACK | F76: - | G76: 0402099 | H76: R 174.20 | I76: R 0.00 | J76: Yes
B77: Trucom Smartoo Modem | C77: Trucom | D77: Trucom | E77: TRUCOM SMARTOO GSM/GPRS DIN-RAIL MOUNT METERING MODEM | F77: - | G77: 0223364 | H77: R 3,000.00 | I77: R 0.00 | J77: Yes
A79: Telecontrol
B80: D20RTU Power Supply | C80: GE | D80: IST | E80: 48 / 110V DC PSU | F80: 4600048574 | G80: 0213376 | H80: R 6,665.00 | I80: =A80*H80 -> R 0.00 | J80: Yes | P80: =SUM(I8:I12,#REF!,I31:I33,I36:I37,I48:I51,I61:I77,I80:I86,I109:I120,#REF!,I133:I134) -> 
B81: D20RTU Config 11 | C81: GE | D81: IST | E81: Config 11 Krone VME D20 RTU, 1 D20C, 1 Moxa | F81: 4600048574 | G81: 0559978 | H81: R 80,623.00 | I81: R 0.00 | J81: Yes
B82: D20 Cabinet | C82: - | D82: IST | E82: PB6 800w x 600d cabinets with removable sides, swing frame, “G” rails, earth studs, | F82: 4600048574 | G82: 0213368 | H82: R 12,355.00 | I82: R 0.00 | J82: Yes
B83: MOXA EXPANSION KIT | C83: Moxa | D83: IST | E83: MOXA EXPANSION KIT (RS232 --> RS485) | F83: 4600048574 | G83: 0250320 | H83: R 2,087.00 | I83: R 0.00 | J83: Yes
B84: D20S Expansion Kit | C84: GE | D84: IST | E84: D20 S Status Expansion Kit with 10m cable | F84: 4600048574 | G84: 0213245 | H84: R 9,791.00 | I84: R 0.00 | J84: Yes
B85: D20C Expansion Kit | C85: GE | D85: IST | E85: D20 C Combo Expansion Kit with 10m cable | F85: 4600048574 | G85: 0213260 | H85: R 14,669.00 | I85: R 0.00 | J85: Yes
B86: Fiber to RS232/422/485 Convertor | C86: Moxa | D86: Elonics | E86: Moxa, RS-232/422/485 to optical fiber media converters: TCF-142-S-SC | F86: Buy Out | G86: - | H86: R 5,000.00 | I86: R 0.00 | J86: Yes
B87: RTU D20 CONFIG 11 1MOXA D20C KRONE | C87: GE | D87: IST | E87: IST GE MISC KIT D20 NON-VME CPU SINGLE SLOT CHASSIS | F87: 4600048574 | G87: 0250318 | H87: - | J87: Yes
A88: 1 | B88: SERIAL TRAY WITH 1 MOXA | C88: GE | D88: IST | E88: 01 X 4 U MOXA RACK MOUNT BOX WITH SILK SCREEN (ISTE-304300) | F88: 4600048574 | G88: 0250319 | H88: R 6,000.00 | I88: =A88*H88 -> R 6,000.00 | J88: Yes
B89: D20S EXPANSION KIT WITH KRONE D9653 | C89: GE | D89: IST | E89: 06 x KRONE CONNECTOR 10PR DISCONNECT | F89: 4600048574 | G89: 0250322 | H89: - | J89: Yes
B90: FORM 4C IBOX DOOR KIT D9653 | C90: GE | D90: IST | E90: METAL DOOR ENCLOSURE, IBOX SER 24V 8 I/P 4 O/P | F90: 4600048574 | G90: 0250323 | H90: - | J90: Yes
B91: IBOX PMRTU D9653 | C91: GE | D91: IST | E91: IST GE POLE TOP ENCLOSURE 3CR12 STEEL | F91: 4600048574 | G91: 0250324 | H91: - | J91: Yes
B92: IBOX SER 24V 8 I/P 4 O/P D9653 | C92: GE | D92: IST | E92: IBOX 20-60 VDC INPUT | F92: 4600048574 | G92: 0250325 | H92: - | J92: Yes
B93: IBOX SER TO MDS RADIO CABLE D9653 | C93: GE | D93: IST | E93: MDS RADIO TO IBOX INTERFACE CABLE | F93: 4600048574 | G93: 0250326 | H93: - | J93: Yes
B94: IBOX SER TO MC402 GPRS CABLE D9653 | C94: GE | D94: IST | E94: METACOM MC402 GPRS MODEM TO IBOX INTERFACE CABLE | F94: 4600048574 | G94: 0250327 | H94: - | J94: Yes
B95: F4C SER TO F-OPTIC CABLE D9653 | C95: GE | D95: IST | E95: FORM4C SERIAL TO FIBRE OPTIC (PMRTU-35000) INTERFACE CABLE | F95: 4600048574 | G95: 0250328 | H95: - | J95: Yes
B96: DIN RAIL F-OPTIC CONVERTER D9653 | C96: GE | D96: IST | E96: RS232 TO MULTIMODE FIBRE OPTIC CONVERTER WITH BAYONET FIBRE INTERFACE | F96: 4600048574 | G96: 0250329 | H96: - | J96: Yes
B97: SD-25A-24 25W DC-DC CONVERTER D9653 | C97: GE | D97: IST | E97: MEANWELL SD-25A 25W, 24V, 1.1A SINGLE OUTPUT DC-DC CONVERTER | F97: 4600048574 | G97: 0250330 | H97: - | J97: Yes
B98: DISCONNECT BLOCKS. | C98: KRONE 031-9043169 | D98: KRONE 031-9043169 | E98: 10 PAIR DISCONNECT BLOCKS. | F98: Buy Out | G98: - | H98: - | J98: Yes
B99: LABEL HOLDERS | C99: KRONE 031-9043169 | D99: KRONE 031-9043169 | E99: 1O PAIR. SIZE 1 FIXED LABEL HOLDERS. | F99: Buy Out | G99: - | H99: - | J99: Yes
B100: BACKMOUNT FRAME | C100: KRONE 031-9043169 | D100: KRONE 031-9043169 | E100: 10 PAIR. 55WAY. 49mm. BACKMOUNT FRAME. FRME 255 | F100: Buy Out | G100: - | H100: - | J100: Yes
B101: Tait Radio | C101: EMCOM | D101: EMCOM | E101: Radio Mobile Dash Mount UHF Tait TM8115 - Contact Raj 031 312 9288 | F101: Vendor No: 11001537 | H101: - | J101: Yes
B102: Trio Radio | C102: IST | D102: IST | E102: CPE Radio/ Trio ER450 | F102: Vendor No: 11051059 | H102: - | J102: Yes
B103: Coaxial Cable | C103: WEB INDUSTRIES | D103: WEB INDUSTRIES | E103: 3m LMR 195 Coaxial Cable Flylead BNC Male to N Female | F103: Vendor No: 11000449 | H103: - | J103: Yes
B104: Antenna | C104: WEB INDUSTRIES | D104: WEB INDUSTRIES | E104: Webb Antenna (380 - 470 MHZ). Y425/ 3 Yagi 3 Element with casting hub. | F104: Vendor No: 11000449 | H104: - | J104: Yes
B105: Bracket | C105: WEB INDUSTRIES | D105: WEB INDUSTRIES | E105: WM30 Extra Heavy Duty offset bracket (300mm) - Contact Lodie Potgieter on 011 719 0149 | F105: Vendor No: 11000449 | H105: - | J105: Yes
B106: Pole | C106: WEB INDUSTRIES | D106: WEB INDUSTRIES | E106: 6m Aluminium pole 50mm diameter 5mm wall thickness | F106: Vendor No: 11000449 | H106: - | J106: Yes
A108: Cable & Accessories (provisional Forecast for costing purpose only)
A109: 300 | B109: 12core, 2.5mm² | C109: Aberdare | D109: Various | E109: CABLE 1kV 12C 2.5SQ CU BVX12DCV | F109: 4600035807 | G109: 0014469 | H109: R 51.95 | I109: =A109*H109 -> R 15,585.00 | J109: Stock Item
A110: 300 | B110: 19core, 2.5mm² | C110: Aberdare | D110: Various | E110: CABLE 1kV 19C 2.5SQ CU BVX19DCV | F110: 4600035807 | G110: 0014484 | H110: R 75.00 | I110: R 22,500.00 | J110: Stock Item
A111: 0 | B111: 10 pair, 0.5mm² | C111: Aberdare | D111: Various | E111: Telephone Cable | F111: 4600035807 | G111: 0014666 | H111: R 20.00 | I111: R 0.00 | J111: Stock Item
A112: 0 | B112: 20 pair, 0.5mm² | C112: Aberdare | D112: Various | E112: Telephone Cable | F112: 4600035807 | G112: 403128 | H112: R 30.00 | I112: R 0.00 | J112: Stock Item
A113: 500 | B113: 4core, 4mm² | C113: Aberdare | D113: Various | E113: CABLE 1kV 4C 4.0SQ CU BVX4ECV | F113: 4600035807 | G113: 0014475 | H113: R 30.45 | I113: R 15,225.00 | J113: Stock Item
A114: 500 | B114: 4core, 2.5mm² | C114: Aberdare | D114: Various | E114: CABLE 1kV 4C 2.5SQ CU BVX4ECV | F114: 4600035807 | G114: 0400646 | H114: R 22.60 | I114: R 11,300.00 | J114: Stock Item
B115: 4core, 16mm² | C115: Aberdare | D115: Various | E115: CABLE 1kV 4C 16.0SQ CU BVX4HCV | F115: 4600035807 | G115: 0014476 | H115: R 75.00 | I115: R 0.00 | J115: Stock Item
A116: 30 | B116: CABLE,COMMS:ARMOURED;4 PAIR TWISTED | C116: Belden | D116: Various | E116: CABLE, COMMUNICATION: ARMOURED; CONDUCTOR: 4 PAIR TWISTED; CONDUCTOR SIZE: 22/24 AWG; FOR EIA - RS 485 DATA; | F116: - | G116: 588799 | H116: R 130.00 | I116: R 3,900.00 | J116: Stock Item
B117: Belden, Unarmoured, 4 pair, 0.5mm² | C117: Jaycor | D117: Various | E117: Belden, Unarmoured, 4 pair, 0.5mm² | F117: Buy Out | G117: - | H117: R 110.00 | I117: R 0.00 | J117: Yes
A118: 30 | B118: Size 1 Cable Gland | C118: Pratley | D118: Various | E118: Size 1 Cable Gland | F118: - | G118: 0168367 | H118: R 12.00 | I118: R 360.00 | J118: Stock Item
A119: 15 | B119: Size 2 Cable Gland | C119: Pratley | D119: Various | E119: Size 2 Cable Gland | F119: - | G119: 0168279 | H119: R 18.00 | I119: R 270.00 | J119: Stock Item
B120: Size 3 Cable Gland | C120: Pratley | D120: Various | E120: Size 3 Cable Gland | F120: - | G120: 0168280 | H120: R 25.00 | I120: R 0.00 | J120: Stock Item
A122: Auxilliaries
B123: CTJB | C123: Contrep | D123: Contrep | E123: VRW20 Junction Box , with 6 circuit CT insert (Fitted) (Complete JB) | F123: 4600004399 | G123: 0186961 | H123: R 6,500.00 | I123: =A123*H123 -> R 0.00 | J123: Yes
B124: VTJB | C124: Contrep | D124: Contrep | E124: VRW20 Junction Box , with 8 circuit VT insert (Fitted) (Complete JB) | F124: 4600004399 | G124: 0186950 | H124: R 7,500.00 | I124: R 0.00 | J124: Yes
A126: AC/ DC Boards
B127: VRPP/ VTX M100 (110V Battery Bank) | C127: Alkaline | D127: Alkaline | E127: CELL, NICD 1.2V 100AH VTX1 M100 D9308 | F127: 4600041171 | G127: 0256102 | H127: R 820.27 | I127: =A127*H127 -> R 0.00 | J127: Yes
B128: Battery Cabinet | C128: Alkaline | D128: Alkaline | E128: CABINET, BATT NICD 88C SA TYPE 3 | F128: 4600041171 | G128: 0256354 | H128: R 16,655.00 | I128: =A128*H128 -> R 0.00 | J128: Yes
B129: Link Set | C129: Alkaline | D129: Alkaline | E129: CONNECTORS, VTX BATT LINK SET 3 | F129: 4600041171 | G129: 0256348 | H129: R 675.00 | I129: R 0.00 | J129: Yes
B130: Sub-rack Battery Charger | C130: IST | D130: IST | E130: 110V 20A Sub-rack Battery Charger - Ensure This is installed in panel | F130: 4600039043 | G130: 0217235 | H130: R 37,036.25 | I130: R 0.00 | J130: Yes
B131: Type F Interface Module | C131: IST | D131: IST | E131: Type F: 19" Interface module - Ensure This is installed in panel | F131: 4600039043 | G131: 0212999 | H131: R 15,483.73 | I131: R 0.00 | J131: Yes
B132: Swingframe Panel | C132: IST | D132: IST | E132: 800x600x1800mm 19” swingframe cabinet with blanking plates D9242 | F132: 4600039043 | G132: 0213000 | H132: R 11,477.48 | I132: R 0.00 | J132: Yes
B133: AC board | C133: SABI ELECTRICAL | D133: SABI ELECTRICAL | E133: As per Drawing-Request from Control Plant Engineer at Ordering Stage | F133: Buy Out | G133: - | H133: R 15,000.00 | I133: R 0.00 | J133: Yes
B134: 110V DC Board | C134: SABI ELECTRICAL | D134: SABI ELECTRICAL | E134: As per Drawing-Request from Control Plant Engineer at Ordering Stage | F134: Buy Out | G134: - | H134: R 10,000.00 | I134: R 0.00 | J134: Yes
B135: 50V DC Board, 63A & 32A MCB's | C135: SABI ELECTRICAL | D135: SABI ELECTRICAL | E135: As per Drawing-Request from Control Plant Engineer at Ordering Stage | F135: Buy Out | G135: - | H135: R 5,000.00 | I135: R 0.00 | J135: Yes
B136: AC Supply Changeover Box | C136: SABI ELECTRICAL | D136: SABI ELECTRICAL | E136: Contact Sabi on (031) 700 3977or email sabi@Iafrica.com | F136: Buy Out | G136: - | H136: R 15,000.00 | I136: R 0.00 | J136: Yes
B137: 100A 3 phase MCB | C137: Various | D137: Various | E137: 100A 3 Phase MCB, DIN Rail Mount | F137: Buy Out | G137: - | H137: R 500.00 | I137: R 0.00 | J137: Yes
A140: Fiber
B141: Armoured 12/24/48 core Single mode fiber | C141: Various | D141: Various | E141: Must be terminated with SC connectors at both ends | F141: Buy Out | G141: - | H141: R 40.00 | I141: =A141*H141 -> R 0.00 | J141: Yes
B142: Conduit for fiber run (High Density Poly Ethelene) | C142: Various | D142: Various | E142: Conduit for fiber run (High Density Poly Ethelene) | F142: Buy Out | G142: - | H142: R 55.00 | I142: =A142*H142 -> R 0.00 | J142: Yes
B143: Corrugated PVC Conduit 110mm | C143: Various | D143: Various | E143: 6m lenghts with connector at end | F143: Buy Out | G143: - | H143: R 233.00 | I143: R 0.00 | J143: Yes
B144: 25mm sprag tubing | C144: Various | D144: Various | E144: 25mm sprag tubing | F144: Buy Out | G144: - | H144: R 22.00 | I144: R 0.00 | J144: Yes
B145: ODF | C145: Various | D145: Various | E145: SC 12PORT PATCH PANEL | F145: Buy Out | G145: - | H145: R 2,550.00 | I145: R 0.00 | J145: Yes

Sheet CP FEES
A1: NED CONTROL PLANT EHGINEERING FEES QUOTATION | B1: QUOTATION - NED CONTROL PLANT ENGINEERING PRELIM AND DETAIL DESIGN
B2: Revised by: Aroon Sukhnandan (Control Plant New Germany) | E2: Revision Date | H2: 2022-08-26
B3: SUBSTATION NAME: | E3: Makhitini Caps x 2
B4: Estimators Details | E4: E-mail: Sukhnaa@eskom.co.za
E5: Tel : 031 710 5265
E6: Fax2Email : 086 696 5792
B7: DATE | E7: 2022-08-16
D8: RATE (T10) ELECTRICAL DRAUGHTSMAN | F8: 276.76 | G8: R/Hour
D9: RATE (P13) ENGINEER | F9: 621.13 | G9: R/Hour
D10: RATE (P16) SENIOR ENGINEER | F10: 866.55 | G10: R/Hour
D11: RATE (T10) ELECTRICAL DRAUGHTSMAN - Overtime | F11: =F8*1.5 -> 415.14 | G11: R/Hour
D12: RATE (P13) ENGINEER - Overtime | F12: =F9*1.5 -> 931.70 | G12: R/Hour
D13: TRAVEL RATE | F13: 4.17 | G13: /km
D14: DISTANCE TO SITE | F14: 410 | G14: km
D15: A3 Printing Cost | F15: 1.30 | G15: Rands/ A3 print
B16: QTY (NORMAL WORK) | C16: QTY (REWORK) | D16: BAY TYPE | E16: DUR (days) | F16: MAN HRS | G16: COST Normal Work | H16: COST Rework
B17: General and Travel Costs
B18: 1 | D18: REFURBISHMENT + 25% of total | F18: =B18*E18 -> 0 | G18: =B18*(0.25*(G44+G53)) -> R53,173.48 | H18: =C18*(0.25*(G44+G53)) -> R0.00
D19: NON STANDARD APPLICATION + 40% of Total | F19: =B19*E19 -> 0 | G19: =B19*(0.4*(G44+G53)) -> R0.00 | H19: =C19*(0.4*(G44+G53)) -> R0.00
B20: 4 | D20: NUMBER OF SITE VISITS -fpr Design Engineers typically 4 to 6 | F20: 8 | G20: =B20*F20*$F$10 -> R27,729.60 | H20: =C20*F20*$F$12 -> R0.00
D21: NUMBER OF SITE VISITS - For Commissiong Engineers typically 2 to 3 | F21: 8 | G21: =B21*F21*$F$10 -> R0.00 | H21: =C21*F21*$F$12 -> R0.00
D22: Total Travel Costs | G22: =(B20+B21+C20+C21)*2*(F14)*F13 -> R13,677.60
D23: General and Travel Sub Total | G23: =SUM(G18:G22) -> R94,580.68 | H23: =H18+H19+H20 -> R0.00
B24: Draughting Costs
D25: TRANSFORMER < 20MVA | E25: 8 | F25: 64 | G25: =B25*F25*$F$8 -> R0.00 | H25: =C25*F25*$F$11 -> R0.00
D26: TRANSFORMER >= 20MVA | E26: 10 | F26: 80 | G26: R0.00 | H26: R0.00
D27: TAPCHANGE | E27: 5 | F27: 40 | G27: R0.00 | H27: R0.00
D28: HV FEEDER BAY | E28: 10 | F28: 80 | G28: R0.00 | H28: R0.00
D29: HV BUS COUPLER/SECTION | E29: 8 | F29: 64 | G29: R0.00 | H29: R0.00
D30: HV BUSBAR (1 zone, no check) | E30: 5 | F30: 40 | G30: R0.00 | H30: R0.00
D31: HV BUSBAR (2 zone + check) | E31: 10 | F31: 80 | G31: R0.00 | H31: R0.00
D32: LV BUSBAR | E32: 5 | F32: 40 | G32: R0.00 | H32: R0.00
D33: LV FEEDER - rural feeders | E33: 2 | F33: 16 | G33: R0.00 | H33: R0.00
D34: LV METAL CLAD BUS ZONE (Vamp) 1Incommer | E34: 5 | F34: 40 | G34: R0.00 | H34: R0.00
D35: LV METAL CLAD BUS ZONE (Vamp) 2Incommer | E35: 8 | F35: 64 | G35: R0.00 | H35: R0.00
D36: LV METAL CLAD BUS ZONE (Vamp) 3 Incommer | E36: 8 | F36: 64 | G36: R0.00 | H36: R0.00
D37: LV METAL CLAD BUS ZONE (Vamp) Double Busbar | E37: 10 | F37: 80 | G37: R0.00 | H37: R0.00
B38: 2 | D38: CAP BANK | E38: 10 | F38: 80 | G38: R44,281.60 | H38: R0.00
B39: 1 | D39: AC/DC BOARD | E39: 2 | F39: 16 | G39: R4,428.16 | H39: R0.00
D40: IDF | E40: 1 | F40: 8 | G40: R0.00 | H40: R0.00
D41: TARIFF METERING | E41: 4 | F41: 32 | G41: R0.00 | H41: R0.00
D42: STATS METERING | E42: 3 | F42: 24 | G42: R0.00 | H42: R0.00
B43: 500 | D43: PRINTS FOR ISSUE - No of sheets | F43: 0 | G43: =B43*$F$15 -> R650.00 | H43: =C43*1 -> R0.00
D44: Draughting Sub Total | F44: =CEILING(G44/F8/8,1) -> 23 | G44: =SUM(G25:G43) -> R49,359.76 | H44: =SUM(H25:H43) -> R0.00
B45: Engineering Design Costs
B46: 4 | D46: Telecontrol detail design (New - 10, Existing 14) | F46: =B46*8 -> 32 | G46: =F46*$F$9 -> R19,876.16 | H46: =C46*8*$F$12 -> R0.00
D47: Fiber Optic Design | F47: =B47*8 -> 0 | G47: =F47*$F$9 -> R0.00 | H47: R0.00 | I47: 0
B48: 6 | D48: Checking and Approving of Pack & Drawings (20% of Eng hours) | F48: =0.2*(SUM(F46:F47,F49:F52)) -> 43.2 | G48: =F48*$F$10 -> R37,434.96 | H48: R0.00
B49: 20 | D49: Compilation and Presentation of Design (10 to 25 days) | F49: =B49*8 -> 160 | G49: =F49*$F$9 -> R99,380.80 | H49: R0.00
D50: Settings (as per schedule) | F50: =B50*8 -> 0 | G50: =F50*$F$9 -> R0.00 | H50: R0.00
B51: 3 | D51: As Builts (by Drawing Office - require schedule) | F51: =B51*8 -> 24 | G51: =F51*$F$8 -> R6,642.24 | H51: R0.00
D52: Commissioning Engineers (normally 3 days per project) | F52: =B52*8 -> 0 | G52: =F52*$F$10 -> R0.00 | H52: R0.00
D53: Engineering Sub Total | F53: =SUM(F46:F52) -> 259.2 | G53: =SUM(G46:G52) -> R163,334.16 | H53: =SUM(H46:H52) -> R0.00
B54: TOTAL DURATION & COST | G54: =G23+G44+G53 -> R307,274.60 | H54: =H23+H44+H53 -> R0.00
B55: TOTAL FINAL PROJECT QUOTATION | G55: =G54+H54 -> R 307,274.60
G58: =G55 -> R307,274.60

Sheet Cables (hidden)
C1: 30
C2: 150
D3: 4core2.5sqmm | E3: 4core4sqmm | F3: 2core16sqmm | G3: 4core16sqmm | H3: 12core2.5sqmm | I3: 19core2.5sqmm | J3: 10pair | K3: 20pair | L3: 4Pair Cable (Amoured) | M3: No 1 Cable Gland | N3: No 2 Cable Gland | O3: No 3 Cable Gland
C4: TOTAL | D4: =SUM(D14)+D20+D40+D52+D62+D76+D86+D94+D99+D25+D30+D111+D120+D134 -> 630 | E4: 180 | F4: 0 | G4: 0 | H4: =SUM(H14)+H20+H40+H52+H62+H76+H86+H94+H99+H25+H30+H111+H120+H134 -> 150 | I4: 150 | J4: 60 | K4: 30 | L4: 0 | M4: 18 | N4: 2 | O4: 2 | P4: =SUM(N4:O4) -> 4
B5: 5 | C5: 4RF1100
D6: 4core2.5sqmm | E6: 4core4sqmm | G6: 4core16sqmm | H6: 12core2.5sqmm | I6: 19core2.5sqmm | J6: 10pair | K6: 20pair | L6: 4Pair Cable (Amoured) | M6: No 1 Cable Gland | N6: No 2 Cable Gland | O6: No 3 Cable Gland
C7: AC DB | D7: =C1*B7 -> 0 | M7: =2*B7 -> 0
C8: DC DB | E8: =C1*B8 -> 0 | M8: =2*B8 -> 0
C9: VT | E9: =C2*B9 -> 0 | M9: =2*B9 -> 0
C10: CT's | H10: =C2*B10 -> 0 | I10: =C2*B10 -> 0 | N10: =2*B10 -> 0 | O10: =2*B10 -> 0
C11: LINE ISOLATOR | D11: =B11*C2 -> 0 | M11: =2*B11 -> 0
C12: IDF | J12: =B12*C1 -> 0 | M12: =2*B12 -> 0
C13: D20RTU | L13: =B13*C1 -> 0 | M13: =2*B13 -> 0
D14: =SUM(D7:D13) -> 0 | E14: =SUM(E7:E13) -> 0 | G14: =SUM(G7:G13) -> 0 | H14: 0 | I14: 0 | J14: 0 | K14: 0 | L14: 0 | M14: 0 | N14: 0 | O14: 0
C17: Stats Metering
C18: VT | E18: =C2*B18 -> 0 | M18: =B18*2 -> 0
C19: Bays (CT's) | D19: =C2*B19 -> 0 | M19: =2*B19 -> 0
D20: =SUM(D18:D19) -> 0 | E20: =SUM(E18:E19) -> 0 | G20: =SUM(G18:G19) -> 0 | H20: 0 | I20: 0 | J20: 0 | K20: 0 | L20: 0 | M20: 0 | N20: 0 | O20: 0
C22: Tariff Metering
C23: VT | E23: =C$2*B23 -> 0 | M23: =2*B23 -> 0
C24: Bays (CT's) | H24: =B24*C2 -> 0 | N24: =2*B24 -> 0
D25: =SUM(D23:D24) -> 0 | E25: =SUM(E23:E24) -> 0 | G25: =SUM(G23:G24) -> 0 | H25: 0 | I25: 0 | J25: 0 | K25: 0 | L25: 0 | M25: 0 | N25: 0 | O25: 0
C27: Tariff Metering - Customer Meters in the Controlroom
C28: VT | E28: =C$1*B28 -> 0 | M28: =2*B28 -> 0
C29: Bays (CT's) | H29: =C$1*B29 -> 0 | N29: =2*B29 -> 0
D30: =SUM(D28:D29) -> 0 | E30: =SUM(E28:E29) -> 0 | G30: =SUM(G28:G29) -> 0 | H30: 0 | I30: 0 | J30: 0 | K30: 0 | L30: 0 | M30: 0 | N30: 0 | O30: 0
C32: 4BZ-5900
D33: 4core2.5sqmm | E33: 4core4sqmm | G33: 4core16sqmm | H33: 12core2.5sqmm | I33: 19core2.5sqmm | J33: 10pair | K33: 20pair | L33: 4Pair Cable (Amoured) | M33: No 1 Cable Gland | N33: No 2 Cable Gland | O33: No 3 Cable Gland
C34: AC DB | D34: =C1*B34 -> 0 | M34: =2*B$34 -> 0
C35: DC DB | E35: =C1*B35 -> 0 | M35: =2*B$35 -> 0
C36: Bays (CT's) | D36: =C2*B36 -> 0 | M36: =2*B$36 -> 0
C37: Relay Panels | D37: =C1*B37 -> 0 | M37: =2*B$37 -> 0
C38: IDF | J38: =C1*B38 -> 0 | M38: =2*B$38 -> 0
C39: D20RTU | L39: =B39*C1 -> 0 | M39: =2*B$39 -> 0
D40: =SUM(D34:D39) -> 0 | E40: =SUM(E34:E39) -> 0 | G40: =SUM(G34:G39) -> 0 | H40: 0 | I40: 0 | J40: 0 | K40: 0 | L40: 0 | M40: 0 | N40: 0 | O40: 0
C42: 4BZ-5800
D43: 4core2.5sqmm | E43: 4core4sqmm | G43: 4core16sqmm | H43: 12core2.5sqmm | I43: 19core2.5sqmm | J43: 10pair | K43: 20pair | L43: 4Pair Cable (Amoured) | M43: No 1 Cable Gland | N43: No 2 Cable Gland | O43: No 3 Cable Gland
C44: AC DB | D44: =C1*B44 -> 0 | M44: =2*B$44 -> 0
C45: DC DB | E45: =C1*B45 -> 0 | M45: =2*B$45 -> 0
C46: Bays (CT's) | D46: =C2*B46 -> 0 | M46: =2*B$46 -> 0
C47: Customer CT's | D47: =D2*B47 -> 0 | M47: =2*B$47 -> 0
C48: Relay Panels | D48: =C1*B48 -> 0 | M48: =2*B$48 -> 0
C49: Customer Relay Panels | D49: =D2*B49 -> 0 | M49: =2*B$49 -> 0
C50: IDF | J50: =C1*B50 -> 0 | M50: =2*B$51 -> 0
C51: D20RTU | L51: =B51*C1 -> 0 | M51: =2*B$51 -> 0
D52: =SUM(D44:D51) -> 0 | E52: =SUM(E44:E51) -> 0 | G52: =SUM(G44:G51) -> 0 | H52: 0 | I52: 0 | J52: 0 | K52: 0 | L52: 0 | M52: 0 | N52: 0 | O52: 0
C54: 4LS-1100
D55: 4core2.5sqmm | E55: 4core4sqmm | G55: 4core16sqmm | H55: 12core2.5sqmm | I55: 19core2.5sqmm | J55: 10pair | K55: 20pair | L55: 4Pair Cable (Amoured) | M55: No 1 Cable Gland | N55: No 2 Cable Gland | O55: No 3 Cable Gland
C56: AC DB | D56: =C1*B56 -> 0 | M56: =2*B$56 -> 0
C57: DC DB | E57: =C1*B57 -> 0 | M57: =2*B$57 -> 0
C58: VT | E58: =B58*C2 -> 0 | M58: =2*B58 -> 0
C59: Relay Panels | D59: =C1*B59 -> 0 | M59: =2*B$59 -> 0
C60: IDF | J60: =C1*B60 -> 0 | M60: =2*B60 -> 0
C61: D20RTU | L61: =B61*C1 -> 0 | M61: =2*B61 -> 0
D62: =SUM(D56:D61) -> 0 | E62: 0 | F62: 0 | G62: 0 | H62: 0 | I62: 0 | J62: 0 | K62: 0 | L62: 0 | M62: 0 | N62: 0 | O62: 0
C64: 4TM-7100
D65: 4core2.5sqmm | E65: 4core4sqmm | G65: 4core16sqmm | H65: 12core2.5sqmm | I65: 19core2.5sqmm | J65: 10pair | K65: 20pair | L65: 4Pair Cable (Amoured) | M65: No 1 Cable Gland | N65: No 2 Cable Gland | O65: No 3 Cable Gland
C66: AC DB | D66: =C1*B66 -> 0 | M66: =2*B$66 -> 0
C67: DC DB | E67: =C1*B67 -> 0 | M67: =2*B$67 -> 0
C68: HV CT's | H68: =B68*C2 -> 0 | M68: =2*B$68 -> 0
C69: HV CB | H69: =C2*B69 -> 0 | I69: =B69*C2 -> 0 | N69: =2*B69 -> 0 | O69: =2*B$69 -> 0
C70: MV VT | E70: =B70*C2 -> 0 | M70: =2*B$70 -> 0
C71: TJB/TRFR | E71: =B71*C2 -> 0 | I71: =2*B71*C2 -> 0 | M71: =2*B$71 -> 0 | O71: =B71*4 -> 0
C72: HV ISOLATOR | D72: =B72*C2 -> 0 | M72: =2*B72 -> 0
C73: MV ISOLATOR | D73: =B73*C2 -> 0 | M73: =2*B73 -> 0
C74: IDF | J74: =B74*C1 -> 0 | M74: =2*B74 -> 0
C75: D20RTU | L75: =B75*C1 -> 0 | M75: =2*B75 -> 0
D76: =SUM(D66:D75) -> 0 | E76: =SUM(E66:E75) -> 0 | G76: =SUM(G66:G75) -> 0 | H76: 0 | I76: 0 | J76: 0 | K76: 0 | L76: 0 | M76: 0 | N76: 0 | O76: 0
C78: 4TC-5200
D79: 4core2.5sqmm | E79: 4core4sqmm | G79: 4core16sqmm | H79: 12core2.5sqmm | I79: 19core2.5sqmm | J79: 10pair | K79: 20pair | L79: 4Pair Cable (Amoured) | M79: No 1 Cable Gland | N79: No 2 Cable Gland | O79: No 3 Cable Gland
C80: AC DB | D80: =B80*C1 -> 0 | M80: =2*B80 -> 0
C81: DC DB | E81: =B81*C1 -> 0 | M81: =2*B$81 -> 0
C82: MV VT | E82: =B82*C2 -> 0 | M82: =2*B$82 -> 0
C83: TJB/TRFR | E83: =B83*C2 -> 0 | I83: =B83*2*C2 -> 0 | M83: =B83*2 -> 0 | N83: =2*B83 -> 0 | O83: =B83*4 -> 0
C84: IDF | J84: =B84*C1 -> 0 | M84: =2*B84 -> 0
C85: D20RTU | L85: =B85*C1 -> 0 | M85: =2*B85 -> 0
D86: =SUM(D80:D85) -> 0 | E86: =SUM(E80:E85) -> 0 | G86: =SUM(G80:G85) -> 0 | H86: 0 | I86: 0 | J86: 0 | K86: 0 | L86: 0 | M86: 0 | N86: 0 | O86: 0
C88: DC Supply - Battery Charger
D89: 4core2.5sqmm | E89: 4core4sqmm | G89: 4core16sqmm | H89: 12core2.5sqmm | I89: 19core2.5sqmm | J89: 10pair | K89: 20pair | L89: 4Pair Cable (Amoured) | M89: No 1 Cable Gland | N89: No 2 Cable Gland | O89: No 3 Cable Gland
C90: AC DB | D90: =B90*C1 -> 0 | M90: =2*B90 -> 0
C91: DC DB | F91: =B91*C1 -> 0 | N91: =2*B$91 -> 0
C92: Batt. Bank | F92: =B92*C1 -> 0 | N92: =4*B$92 -> 0
C93: IDF | J93: =B93*C1 -> 0 | M93: =2*B93 -> 0
D94: =SUM(D90:D93) -> 0 | E94: 0 | F94: 0 | G94: 0 | H94: 0 | I94: 0 | J94: 0 | K94: 0 | L94: 0 | M94: 0 | N94: 0 | O94: 0
C96: AC Supply
D97: 4core2.5sqmm | E97: 4core4sqmm | G97: 4core16sqmm | H97: 12core2.5sqmm | I97: 19core2.5sqmm | J97: 10pair | K97: 20pair | L97: 4Pair Cable (Amoured) | M97: No 1 Cable Gland | N97: No 2 Cable Gland | O97: No 3 Cable Gland
C98: AUX | G98: =B98*C2 -> 0 | M98: =2*B98 -> 0
D99: =SUM(D98:D98) -> 0 | E99: =SUM(E98:E98) -> 0 | G99: =SUM(G98:G98) -> 0 | H99: 0 | I99: 0 | J99: 0 | K99: 0 | L99: 0 | M99: 0 | N99: 0 | O99: 0
B101: 0 | C101: 4BC-1900
D102: 4core2.5sqmm | E102: 4core4sqmm | G102: 4core16sqmm | H102: 12core2.5sqmm | I102: 19core2.5sqmm | J102: 10pair | K102: 20pair | L102: 4Pair Cable (Amoured) | M102: No 1 Cable Gland | N102: No 2 Cable Gland | O102: No 3 Cable Gland
B103: 0 | C103: AC DB | D103: =B103*C1 -> 0 | M103: =2*B103 -> 0
B104: 0 | C104: DC DB | E104: =B104*C1 -> 0 | M104: =2*B104 -> 0
B105: 0 | C105: VT | E105: =B105*C2 -> 0 | M105: =2*B105 -> 0
B106: 0 | C106: BREAKER | E106: =B106*C2 -> 0 | I106: =B106*C2 -> 0 | M106: =B106*2 -> 0 | O106: =B106*4 -> 0
B107: 0 | C107: CT's | I107: =B107*C2 -> 0 | O107: =B107*4 -> 0
B108: 0 | C108: BB1 ISOLATOR | D108: =B108*C2 -> 0 | M108: =2*B108 -> 0
B109: 0 | C109: BB2 ISOLATOR | D109: =B109*C2 -> 0 | M109: =2*B109 -> 0
B110: 0 | C110: IDF | J110: =B110*C1 -> 0 | K110: =B110*C1 -> 0 | M110: =4*B110 -> 0
D111: =SUM(D103:D110) -> 0 | E111: =SUM(E103:E110) -> 0 | G111: =SUM(G103:G110) -> 0 | H111: 0 | I111: 0 | J111: 0 | K111: 0 | L111: 0 | M111: 0 | N111: 0 | O111: 0
B113: 0 | C113: Busbar Arc Flash Protection scheme
D114: 4core2.5sqmm | E114: 4core4sqmm | G114: 4core16sqmm | H114: 12core2.5sqmm | I114: 19core2.5sqmm | J114: 10pair | K114: 20pair | L114: 4Pair Cable (Amoured) | M114: No 1 Cable Gland | N114: No 2 Cable Gland | O114: No 3 Cable Gland
B115: 0 | C115: AC DB | D115: =B115*C1 -> 0 | M115: =2*B115 -> 0
B116: 0 | C116: DC DB | E116: =B116*C1 -> 0 | M116: =2*B116 -> 0
B117: 0 | C117: INCOMER | H117: =B117*C2 -> 0 | N117: =2*B117 -> 0
B118: 0 | C118: BAYS | D118: =B118*C1 -> 0 | M118: =B118*2 -> 0
B119: 0 | C119: IDF | J119: =B119*C1 -> 0 | M119: =2*B119 -> 0
D120: =SUM(D115:D119) -> 0 | E120: =SUM(E115:E119) -> 0 | G120: =SUM(G115:G119) -> 0 | H120: 0 | I120: 0 | J120: 0 | K120: 0 | L120: 0 | M120: 0 | N120: 0 | O120: 0
B122: 5 | C122: 4RF1100
D123: 4core2.5sqmm | E123: 4core4sqmm | G123: 4core16sqmm | H123: 12core2.5sqmm | I123: 19core2.5sqmm | J123: 10pair | K123: 20pair | L123: 4Pair Cable (Amoured) | M123: No 1 Cable Gland | N123: No 2 Cable Gland | O123: No 3 Cable Gland
B124: 1 | C124: AC DB | D124: =C1*B124 -> 30 | M124: =2*B124 -> 2
B125: 1 | C125: DC DB | E125: =C1*B125 -> 30 | M125: =2*B125 -> 2
B126: 1 | C126: VT | E126: =C2*B126 -> 150 | M126: =2*B126 -> 2
B127: 1 | C127: CT's | H127: =C2*B127 -> 150 | N127: =2*B127 -> 2
B128: 1 | C128: BKR MB | D128: =C2*B128 -> 150 | I128: =C2*B127 -> 150 | O128: =2*B127 -> 2
B129: 1 | C129: BKR CB SIDE ES | D129: =C2*B129 -> 150 | M129: =2*B129 -> 2
B130: 1 | C130: BKR BB SIDE ES | D130: =C2*B130 -> 150 | M130: 2
B131: 1 | C131: BB ISOLATOR | D131: =B131*C2 -> 150 | M131: =2*B131 -> 2
B132: 1 | C132: IDF | J132: =B132*C1*2 -> 60 | K132: =B132*C1 -> 30 | M132: =2*B132*3 -> 6
C133: D20RTU | L133: =B133*C1 -> 0 | M133: =2*B133 -> 0
D134: =SUM(D124:D133) -> 630 | E134: =SUM(E124:E133) -> 180 | G134: =SUM(G124:G133) -> 0 | H134: 150 | I134: 150 | J134: 60 | K134: 30 | L134: 0 | M134: 18 | N134: 2 | O134: 2

Sheet Materials
B3: MATERIALS | C3: QUANTITY | D3: ITEM | E3: COST | F3: TOTAL
B4: PROTECTION | C4: 1 x Transformer Protection Schemes - (TRFR-1: 20MVA, 88/22kV)
C5: 0 | D5: 4TM-7101 TWO- OR THREE WINDING TRANSFORMER PROTECTION SCHEME (110V DC) | E5: R 109,000.00 | F5: =C5*E5 -> 0
C6: 0 | D6: SWING FRAME PANEL OF DIMENSIONS: 2400mm HIGH x 800mm WIDE x 600mm DEEP. Bottom Entry | E6: R 16,000.00 | F6: =C6*E6 -> 0
C7: 0 | D7: HANDLING AND INSTALLATION OF 1 x 4TC-5200 TAP CHANGE PROTECTION AND CONTROL SCHEME INTO THE SWING FRAME PANEL OF A 4TM-7xx0 SCHEME | E7: R 1,100.00 | F7: =C7*E7 -> 0
C8: 0 | D8: HIGH IMPEDANCE RESTRICTED EARTH FAULT PROTECTION FOR 4TM-7101 OR 4TM-7150 TRANSFORMER PROTECTION SCHEMES FOR APPLICATION WITH A TWO-WINDING TRANSFORMER | E8: R 29,000.00 | F8: =C8*E8 -> 0
C9: 0 | D9: ETHERNET COMMS INTERFACE SUPPORTING THE IEC 61850 PROTOCOL FOR A SEL-487E-3 RELAY | E9: R 15,000.00 | F9: =C9*E9 -> 0
C10: 1 x Tap Changer Protection Schemes - (TRFR-1: 20MVA)
C11: 0 | D11: 4TC-5200 TAP CHANGE PROTECTION AND CONTROL SCHEME (110 VDC) | E11: R 50,000.00 | F11: =C11*E11 -> 0
C12: 0 | D12: TEMPORARY CRATING, TRANSPORT AND OFFLOADING OF 1 X 4TC-5200 TAP CHANGE PROTECTION AND CONTROL SCHEME MODULE FROM POWERTECH IST WORKS TO CONSOLIDATED POWER PROJECTS (CONCO) WORKS | E12: R 1,800.00 | F12: =C12*E12 -> 0
C13: 0 | D13: UPGRADE OF EBERLE REG-DA TAP CHANGE CONTROL RELAY TO INCLUDE REG-PED (ETHERNET) SUPERVISORY COMMS INTERFACE | E13: R 6,135.00 | F13: =C13*E13 -> 0
C14: 22kV MV Rural Feeder Scheme
C15: 0 | D15: 4RF-1101 Reticulation Feeder Protection Scheme (Serial SCADA only). | E15: R 20,500.00 | F15: =C15*E15 -> 0
C16: 0 | D16: Optional second rear communication port for MiCOM P145 relay. | E16: R 2,000.00 | F16: =C16*E16 -> 0
C17: 0 | D17: 19' Swing frame panel. | E17: R 13,500.00 | F17: =C17*E17 -> 0
C18: Under Frequency Load Shedding Scheme (UFLS)
C19: 0 | D19: 4LS-1101 Under Frequency Load Shedding Protection Scheme (Serial SCADA only). | E19: R 30,400.00 | F19: =C19*E19 -> 0
C20: 0 | D20: 19' Swing frame panel. | E20: R 13,500.00 | F20: =C20*E20 -> 0
C21: Capacitor Bank Protection Scheme (4CB1100)
C22: 2 | D22: GE C70 based Capacitor Bank Protection Scheme (Serial SCADA) | E22: ='NED Control Plant BOM'!H54 -> R 700,000.00 | F22: =C22*E22 -> R 1,400,000.00
C23: 2 | D23: Swing Frame Panel: 2400mm h x 800mm d x 600mm w | E23: R 15,000.00 | F23: =C23*E23 -> R 30,000.00
C25: 0 | D25: Crating of one 4CB1100 protection scheme module for transport | E25: R 817.00 | F25: 0
B26: METERING | C26: STATS METERING
C27: 0 | D27: Meter module Plate | E27: R 7,000.00 | F27: =C27*E27 -> 0
C28: 0 | D28: Meter | E28: R 4,000.00 | F28: 0
C29: 0 | D29: Cellular Modem | E29: R 3,000.00 | F29: 0
C30: 0 | D30: MODULE, MODEM S/PANEL D9404 | E30: R 4,000.00 | F30: 0
C31: 0 | D31: Swing Frame Panels | E31: R 9,000.00 | F31: 0
C32: 0 | D32: SIM Card | E32: R 5.00 | F32: 0
C33: 0 | D33: Voltage Selection Module | E33: R 9,500.00 | F33: 0
C34: 0 | D34: 7U Blanking Plate | E34: R 100.00 | F34: 0
C35: 0 | D35: 3U Blanking Plate | E35: R 70.00 | F35: 0
C36: 0 | D36: Cage Nuts, Bolts | E36: R 5.00 | F36: 0
B37: TELECONTROL | D37: Telecontrol
C38: 1 | D38: SERIAL TRAY WITH 1 MOXA | E38: ='NED Control Plant BOM'!H88 -> R 6,000.00 | F38: =C38*E38 -> R 6,000.00
B39: DC SUPPLY | D39: Battery Bank
C40: 0 | D40: CELL, NICD 1.2V 75AH VTX1 M75 D9308 | E40: R 655.00 | F40: =C40*E40 -> 0
C41: 0 | D41: CONNECTORS, VTX BATT LINK SET 3 | E41: R 700.00 | F41: =C41*E41 -> 0
C42: 0 | D42: Battery Bank Cabinet | E42: R 16,700.00 | F42: =C42*E42 -> 0
D43: 110V DC LIGHTS
C44: 0 | D44: 110DC Light | E44: R 1,000.00 | F44: =C44*E44 -> 0
C45: 0 | D45: 110DC Lights Switch | E45: R 300.00 | F45: =C45*E45 -> 0
B46: TELECOMMS | D46: FIBRE OPTIC
C47: 0 | D47: 12 core Heavy Duty Duct fibre cable 50/125nm Multimode (non-metallic) | E47: R 25.00 | F47: =C47*E47 -> 0
C48: 0 | D48: Optex duct (Direct burial duct – OD/ID: 32/26mm) | E48: R 30.00 | F48: =C48*E48 -> 0
C49: 0 | D49: Plastic/Metal dome fibre splice closure | E49: R 3,500.00 | F49: =C49*E49 -> 0
C50: 0 | D50: STX mounting rail distributor with 6xST Duplex, splice cassette, Pigtails, cable strain relief [12x G50/125 OM2, ST] | E50: R 1,000.00 | F50: =C50*E50 -> 0
B51: AUX | D51: AUXILLARIES
C52: 0 | D52: VRW20 Junction Box , with 8 circuit VT insert (Fitted) (Complete JB) 304 stainless steel option. | E52: R 7,100.00 | F52: =C52*E52 -> 0
D53: CT Junction Box | E53: R 6,000.00 | F53: =C53*E53 -> 0
C54: 0 | D54: AC Distribution Board | E54: R 13,000.00 | F54: =C54*E54 -> 0
D55: Transformer Junction Box | E55: R 13,000.00 | F55: =C55*E55 -> 0
D56: Cable and Glands | E56: =SUM('NED Control Plant BOM'!I109:I120) -> R 69,140.00 | F56: =E56 -> R 69,140.00
B57: Miscellaneous | D57: 10% | F57: =D57*SUM(F5:F9,F11:F13,F15:F17,F19:F20,F27:F36,F38,F40:F42,F44:F45,F52:F56,F47:F50,F22:F25) -> R 150,514.00
B58: TOTAL | F58: =SUM(F5:F9,F11:F13,F15:F17,F19:F20,F27:F36,F38,F40:F42,F44:F45,F52:F57,F47:F50,F22:F25) -> R 1,655,654.00
F62: =F58-F57 -> R 1,505,140.00
F63: ='NED Control Plant BOM'!I150 -> 0
F64: =F62-F63 -> R 1,505,140.00
H68: v

Sheet Long Lead Material
B3: MATERIALS | C3: QUANTITY | D3: ITEM | E3: COST | F3: TOTAL
B4: PROTECTION | C4: 1 x Transformer Protection Schemes - (TRFR-1: 20MVA, 88/22kV)
C5: 0 | D5: 4TM-7101 TWO- OR THREE WINDING TRANSFORMER PROTECTION SCHEME (110V DC) | E5: R 109,000.00 | F5: =C5*E5 -> 0
C6: 0 | D6: SWING FRAME PANEL OF DIMENSIONS: 2400mm HIGH x 800mm WIDE x 600mm DEEP. Bottom Entry | E6: R 16,000.00 | F6: =C6*E6 -> 0
C7: 0 | D7: HANDLING AND INSTALLATION OF 1 x 4TC-5200 TAP CHANGE PROTECTION AND CONTROL SCHEME INTO THE SWING FRAME PANEL OF A 4TM-7xx0 SCHEME | E7: R 1,100.00 | F7: =C7*E7 -> 0
C8: 0 | D8: HIGH IMPEDANCE RESTRICTED EARTH FAULT PROTECTION FOR 4TM-7101 OR 4TM-7150 TRANSFORMER PROTECTION SCHEMES FOR APPLICATION WITH A TWO-WINDING TRANSFORMER | E8: R 29,000.00 | F8: =C8*E8 -> 0
C9: 0 | D9: ETHERNET COMMS INTERFACE SUPPORTING THE IEC 61850 PROTOCOL FOR A SEL-487E-3 RELAY | E9: R 15,000.00 | F9: =C9*E9 -> 0
C10: 1 x Tap Changer Protection Schemes - (TRFR-1: 20MVA)
C11: 0 | D11: 4TC-5200 TAP CHANGE PROTECTION AND CONTROL SCHEME (110 VDC) | E11: R 50,000.00 | F11: =C11*E11 -> 0
C12: 0 | D12: TEMPORARY CRATING, TRANSPORT AND OFFLOADING OF 1 X 4TC-5200 TAP CHANGE PROTECTION AND CONTROL SCHEME MODULE FROM POWERTECH IST WORKS TO CONSOLIDATED POWER PROJECTS (CONCO) WORKS | E12: R 1,800.00 | F12: =C12*E12 -> 0
C13: 0 | D13: UPGRADE OF EBERLE REG-DA TAP CHANGE CONTROL RELAY TO INCLUDE REG-PED (ETHERNET) SUPERVISORY COMMS INTERFACE | E13: R 6,135.00 | F13: =C13*E13 -> 0
C14: 22kV MV Rural Feeder Scheme
C15: 0 | D15: 4RF-1101 Reticulation Feeder Protection Scheme (Serial SCADA only). | E15: R 20,500.00 | F15: =C15*E15 -> 0
C16: 0 | D16: Optional second rear communication port for MiCOM P145 relay. | E16: R 2,000.00 | F16: =C16*E16 -> 0
C17: 0 | D17: 19' Swing frame panel. | E17: R 13,500.00 | F17: =C17*E17 -> 0
C18: Under Frequency Load Shedding Scheme (UFLS)
C19: 0 | D19: 4LS-1101 Under Frequency Load Shedding Protection Scheme (Serial SCADA only). | E19: R 30,400.00 | F19: =C19*E19 -> 0
C20: 0 | D20: 19' Swing frame panel. | E20: R 13,500.00 | F20: =C20*E20 -> 0
C21: Capacitor Bank Protection Scheme (4CB1100)
C22: 2 | D22: C70 based Capacitor Bank Protection Scheme (Serial SCADA only) | E22: ='NED Control Plant BOM'!H54 -> R 700,000.00 | F22: =C22*E22 -> R 1,400,000.00
C23: 2 | D23: Swing Frame Panel: 2400mm h x 800mm d x 600mm w | E23: R 15,000.00 | F23: =C23*E23 -> R 30,000.00
C25: 0 | D25: Crating of one 4CB1100 protection scheme module for transport | E25: R 817.00 | F25: 0
B26: METERING | C26: STATS METERING
C27: 0 | D27: Meter module Plate | E27: R 7,000.00 | F27: =C27*E27 -> 0
C28: 0 | D28: Meter | E28: R 4,000.00 | F28: 0
C29: 0 | D29: Cellular Modem | E29: R 3,000.00 | F29: 0
C30: 0 | D30: MODULE, MODEM S/PANEL D9404 | E30: R 4,000.00 | F30: 0
C31: 0 | D31: Swing Frame Panels | E31: R 9,000.00 | F31: 0
C32: 0 | D32: SIM Card | E32: R 5.00 | F32: 0
C33: 0 | D33: Voltage Selection Module | E33: R 9,500.00 | F33: 0
C34: 0 | D34: 7U Blanking Plate | E34: R 100.00 | F34: 0
C35: 0 | D35: 3U Blanking Plate | E35: R 70.00 | F35: 0
C36: 0 | D36: Cage Nuts, Bolts | E36: R 5.00 | F36: 0
B37: TELECONTROL | D37: Telecontrol
C38: 1 | D38: SERIAL TRAY WITH 1 MOXA | E38: ='NED Control Plant BOM'!H88 -> R 6,000.00 | F38: =C38*E38 -> R 6,000.00
B39: DC SUPPLY | D39: Battery Bank
C40: 0 | D40: CELL, NICD 1.2V 75AH VTX1 M75 D9308 | E40: R 655.00 | F40: =C40*E40 -> 0
C41: 0 | D41: CONNECTORS, VTX BATT LINK SET 3 | E41: R 700.00 | F41: =C41*E41 -> 0
C42: 0 | D42: Battery Bank Cabinet | E42: R 16,700.00 | F42: =C42*E42 -> 0
D43: 110V DC LIGHTS
C44: 0 | D44: 110DC Light | E44: R 1,000.00 | F44: =C44*E44 -> 0
C45: 0 | D45: 110DC Lights Switch | E45: R 300.00 | F45: =C45*E45 -> 0
B46: TELECOMMS | D46: FIBRE OPTIC
C47: 0 | D47: 12 core Heavy Duty Duct fibre cable 50/125nm Multimode (non-metallic) | E47: R 25.00 | F47: =C47*E47 -> 0
C48: 0 | D48: Optex duct (Direct burial duct – OD/ID: 32/26mm) | E48: R 30.00 | F48: =C48*E48 -> 0
C49: 0 | D49: Plastic/Metal dome fibre splice closure | E49: R 3,500.00 | F49: =C49*E49 -> 0
C50: 0 | D50: STX mounting rail distributor with 6xST Duplex, splice cassette, Pigtails, cable strain relief [12x G50/125 OM2, ST] | E50: R 1,000.00 | F50: =C50*E50 -> 0
B51: AUX | D51: AUXILLARIES
C52: 0 | D52: VRW20 Junction Box , with 8 circuit VT insert (Fitted) (Complete JB) 304 stainless steel option. | E52: R 7,100.00 | F52: =C52*E52 -> 0
D53: CT Junction Box | E53: R 6,000.00 | F53: =C53*E53 -> 0
C54: 0 | D54: AC Distribution Board | E54: R 13,000.00 | F54: =C54*E54 -> 0
D55: Transformer Junction Box | E55: R 13,000.00 | F55: =C55*E55 -> 0
D56: Cable and Glands | E56: =SUM('NED Control Plant BOM'!I109:I120) -> R 69,140.00 | F56: =E56 -> R 69,140.00
B57: Miscellaneous | D57: 0% | F57: =D57*SUM(F5:F9,F11:F13,F15:F17,F19:F20,F27:F36,F38,F40:F42,F44:F45,F52:F56,F47:F50,F22:F25) -> 0
B58: TOTAL | F58: =SUM(F5:F9,F11:F13,F15:F17,F19:F20,F27:F36,F38,F40:F42,F44:F45,F52:F57,F47:F50,F22:F25) -> R 1,505,140.00
F62: =F58-F57 -> R 1,505,140.00
F63: ='NED Control Plant BOM'!I150 -> 0
F64: =F62-F63 -> R 1,505,140.00
H68: v

Sheet TELECONTROL (hidden)
B8: I/O | C8: Status inputs | D8: Control outputs | E8: Analogues inputs
B9: Proposed capacity | C9: =SUM(C12:C15) -> 192 | D9: =SUM(D12:D15) -> 64 | E9: =SUM(E12:E15) -> 32
A12: 0 | B12: Combo Card | C12: =16*A12 -> 0 | D12: =8*A12 -> 0 | E12: =16*A12 -> 0
A13: 3 | B13: Status Card | C13: =A13*64 -> 192
A14: 2 | B14: Control Card | D14: =A14*32 -> 64
A15: 1 | B15: Analogue Card | E15: =A15*32 -> 32

Sheet Cost Summary
B4: Description | E4: Cost
B5: Material Cost (M) | E5: =SUM(E6:E8) -> R 1,655,654.00
B6: Control Plant ( C) | E6: =Materials!F58 -> R 1,655,654.00
B7: Primary Plant (M) | E7: 0
B8: Reticulation - 33 & 11kv Line (Material) | E8: 0
B9: Labour and Transport | E9: =E16+E10+E28+E32 -> R 2,068,308.60
B10: Engineering Cost (E) | E10: =SUM(D11:D15) -> R 307,274.60
B11: Control Plant Design (C) | D11: ='CP FEES'!G58 -> R 307,274.60
B12: Project Management Fees (B) | D12: 0
B13: Environment ( E) | D13: 0
B14: Primary Plant (Survey, Design, Environ) | D14: 0
B15: Reticulation - 33 & 11kv Line (Design) | D15: 0
B16: Internal Contracts | E16: =SUM(D17:D27) -> R 65,000.00
B17: SCADA Management | D17: =500*20 -> R 10,000.00
B18: Control Plant Maintenance (CPM) Audit | D18: R 35,000.00
B19: Settings and Configuration | D19: R 20,000.00
B20: MEW | D20: 0
B21: Control Plant Maintenance (CPM) Mobile Commissioning | D21: 0
B22: Electrical (Labour only) | D22: 0
B23: FS, TSG, Workshops | D23: 0
B24: Reticulation - 33 & 11kv Line [Transport,Eng Survey & Geo Mapping( MV ), Project Management Fees MV, Field Services ( MV ), Commissioning] | D24: 0
B25: Major Engineering Works (MEW) | D25: 0
B26: TSG - Mobile Substation | D26: 0
B27: Fibre Contractor (Eskom Telecomms) | D27: 0
B28: External Contracts | E28: =SUM(D29:D31) -> R 0.00
B29: Civil Works (Material & Labour) | D29: 0
B30: Reticulation - 33 & 11kv Line (Labour) | D30: 0
B31: Demolish & Rehabilitate site | D31: 0
B32: Commissioning (T) | E32: =SUM(D33:D34) -> R 1,696,034.00
B33: Customer Network Centre (CNC) | D33: R 5,000.00
B34: PTM/Commissioning Contractor | D34: R 1,691,034.00
B35: Sub-Total 1 | E35: =SUM(E5 + E9) -> R 3,723,962.60
B36: Overheads | D36: 10.00% | E36: =D36*E35 -> R 372,396.26
B37: Sub-Total 2 | E37: =SUM(E35:F36) -> R 4,096,358.86
B38: IDC (Calculated over 6 Months) | C38: 9 | D38: 0.00% | E38: =IF(C38<9,0,E37*(C38/12)*D38)*0.6 -> 0
B39: Total Project Cost | E39: =SUM(E37:F38) -> R 4,096,358.86

Sheet Panel Footprints (hidden)
B3: Description | C3: Dimension | D3: Panels
B4: Transformer and Tapchanger Schemes | C4: 2400mm HIGH x 800mm WIDE x 600mm DEEP | D4: 1
B5: Buszone Protection | C5: 2400mm HIGH x 800mm WIDE x 600mm DEEP
B6: Tariff Metering | C6: 2400mm HIGH x 800mm WIDE x 600mm DEEP
B7: Statistical Metering | C7: 2400mm HIGH x 800mm WIDE x 600mm DEEP | D7: 1
B8: Customer Metering Panel | C8: 2400mm HIGH x 800mm WIDE x 600mm DEEP
B9: Battery Charger 110V | C9: 1300mm HIGH x 1200mm WIDE x 750mm DEEP
B10: Battery Bank 110V | C10: 1800mm HIGH x 850mm WIDE x 650mm DEEP
B11: 110V Top Drawer Battery Charger and Battery Bank | C11: 1300mm HIGH x 1200mm WIDE x 750mm DEEP | D11: 1
B12: D20 RTU | C12: 1800mm HIGH x 800mm WIDE x 600mm DEEP | D12: 1
B13: SUB-TOTAL | D13: =SUM(D4:D12) -> 4
B15: Wall Mount
B16: AC Distribution Board | C16: 850mm HIGH x 1100mm WIDE x 200mm DEEP | D16: 1
B17: AC Distribution Board
B18: DC Distribution Board | C18: 735mm HIGH x 600mm WIDE x 150mm DEEP | D18: 1
B19: CCTV
B20: SUB-TOTAL | D20: =SUM(D16:D19) -> 2
B22: TOTAL | D22: =D13+D20 -> 6
C27: Reserve 4 33/11kV S/S Relocation (5km)

Sheet BOM (hidden)
A1: ITEM | B1: QTY | C1: TYPE | D1: MNFR | E1: SUPPLIER | F1: DESCRIPTION | G1: ENC? | H1: TECHNICAL DETAILS | I1: SAP No | J1: Status | K1: Price/Unit | L1: Total Price | M1: LLT | N1: Comment
B2: PROTECTION
B3: 1 x Transformer Protection Schemes - (TRFR-1: 20MVA, 88/22kV)
A4: 1 | B4: 0 | C4: 4TM-7101 TWO- OR THREE WINDING TRANSFORMER PROTECTION SCHEME (110V DC) | D4: CONCO | E4: CONCO | F4: Includes capability for differential- and low impedance Restricted Earth Fault protection, current- and voltage-based protection and measurements. Supervisory indications and controls via serial communication: rear RS485 port with DNP3 protocol. Includes second rear RS485 port for remote engineering access (via SEL’s LMD protocol). | G4: 4600037464 | H4: See Ordering Schedule | I4: 246026 | J4: To Order | K4: R 109,000.00 | L4: =K4*B4 -> 0 | M4: Y
A5: 2 | B5: 0 | C5: SWING FRAME PANEL OF DIMENSIONS: 2400mm HIGH x 800mm WIDE x 600mm DEEP. Bottom Entry | D5: CONCO | E5: CONCO | F5: Includes: 1) Installation of 1 x 4TM-7xx0 transformer protection scheme into panel 2) All blanking plates to close front panel aperture 3) Crating for transport | G5: 4600037464 | H5: See Ordering Schedule | I5: 246031 | J5: To Order | K5: R 16,000.00 | L5: =K5*B5 -> 0 | M5: Y
A6: 3 | B6: 0 | C6: HANDLING AND INSTALLATION OF 1 x 4TC-5200 TAP CHANGE PROTECTION AND CONTROL SCHEME INTO THE SWING FRAME PANEL OF A 4TM-7xx0 SCHEME | D6: CONCO | E6: CONCO | F6: HANDLING AND INSTALLATION OF 1 x 4TC-5200 TAP CHANGE PROTECTION AND CONTROL SCHEME INTO THE SWING FRAME PANEL OF A 4TM-7xx0 SCHEME | G6: 4600037464 | H6: See Ordering Schedule | I6: 246033 | J6: To Order | K6: R 1,100.00 | L6: =K6*B6 -> 0 | M6: Y
A7: 4 | B7: 0 | C7: HIGH IMPEDANCE RESTRICTED EARTH FAULT PROTECTION FOR 4TM-7101 OR 4TM-7150 TRANSFORMER PROTECTION SCHEMES FOR APPLICATION WITH A TWO-WINDING TRANSFORMER | D7: CONCO | E7: CONCO | F7: Includes: - 2 x RMS 2V73 High impedance differential protection relays - 2 x Single phase metrosils (one 6 inch, one 3 inch) - Installation and additional wiring as per Eskom master drawings D-DT-15202 and D-DT-15203 Level 8 | G7: 4600037464 | H7: See Ordering Schedule | I7: 246035 | J7: To Order | K7: R 29,000.00 | L7: =K7*B7 -> 0 | M7: Y
A8: 5 | B8: 0 | C8: ETHERNET COMMS INTERFACE SUPPORTING THE IEC 61850 PROTOCOL FOR A SEL-487E-3 RELAY | D8: CONCO | E8: CONCO | F8: Note: When specified at scheme ordering stage, the scheme will be delivered with the Ethernet card AND SEL-2885 and SEL-2886 RS232 to RS485 converters of default schemes (i.e. Levels 27 and 28 of the scheme master drawings). | G8: 4600037464 | H8: See Ordering Schedule | I8: 246044 | J8: To Order | K8: R 15,000.00 | L8: =K8*B8 -> 0 | M8: Y
B9: 1 x Tap Changer Protection Schemes - (TRFR-1: 20MVA)
A10: 6 | B10: 0 | C10: 4TC-5200 TAP CHANGE PROTECTION AND CONTROL SCHEME (110 VDC) | D10: Powertech IST Energy | E10: Powertech IST Energy | F10: Manual and automatic tap change control with tapping supervision. Parallel control via circulating current minimisation or master–slave programs. Compatible with REG-D voltage regulating relays. Supervisory indications and controls via serial communication: rear RS-485 port with DNP3 protocol. Accepts binary encoded tap position indication from tap change drive. Voltage supplies: 110 Volt DC and 230 Volt AC. Suitable for 1A or 5A rated current transformer input. | G10: 4600036968 | H10: See Ordering Schedule | I10: 246077 | J10: To Order | K10: R 50,000.00 | L10: =K10*B10 -> 0 | M10: Y
A11: 7 | B11: 0 | C11: TEMPORARY CRATING, TRANSPORT AND OFFLOADING OF 1 X 4TC-5200 TAP CHANGE PROTECTION AND CONTROL SCHEME MODULE FROM POWERTECH IST WORKS TO CONSOLIDATED POWER PROJECTS (CONCO) WORKS | D11: Powertech IST Energy | E11: Powertech IST Energy | F11: Non-stock item for costing purposes only. EXCLUDES: - Handling, storage and installation of the module into the transformer protection scheme by CONCO | G11: 4600036968 | H11: See Ordering Schedule | I11: 246080 | J11: To Order | K11: R 1,800.00 | L11: =K11*B11 -> 0 | M11: Y
A12: 8 | B12: 0 | C12: UPGRADE OF EBERLE REG-DA TAP CHANGE CONTROL RELAY TO INCLUDE REG-PED (ETHERNET) SUPERVISORY COMMS INTERFACE | D12: Powertech IST Energy | E12: Powertech IST Energy | F12: INCLUDES:- - 1 x RS-485 port supporting the DNP3 protocol (replaces the RS-485 port provided on standard relay). - 1 x 820 nm fibre optic Ethernet port and 1 x copper Ethernet port supporting IEC 61850 (SCADA protocol excluding goose messages) | G12: 4600036968 | H12: See Ordering Schedule | I12: 246086 | J12: To Order | K12: R 6,135.00 | L12: =K12*B12 -> 0 | M12: Y
B13: 22kV MV Rural Feeder Scheme
A14: 9 | B14: 0 | C14: 4RF-1101 Reticulation Feeder Protection Scheme (Serial SCADA only). | D14: ACTOM Protection & Control | E14: ACTOM Protection & Control | F14: Including a MiCOM P145 feeder management relay. | G14: 4600039646 | H14: See Ordering Schedule | I14: 583094 | J14: To Order | K14: R 20,500.00 | L14: =K14*B14 -> 0 | M14: Y | N14: Only 2 schemes shall be installed in the same panel (item 11). The third scheme to be housed in the UFLS pane (item 13).
A15: 10 | B15: 0 | C15: Optional second rear communication port for MiCOM P145 relay. | D15: ACTOM Protection & Control | E15: ACTOM Protection & Control | F15: Supports Courier protocol on RS-485/RS-232/K-bus (user settable) for remote engineering access. | G15: 4600039646 | H15: See Ordering Schedule | I15: 224955 | J15: To Order | K15: R 2,000.00 | L15: =K15*B15 -> 0 | M15: Y
A16: 11 | B16: 0 | C16: 19' Swing frame panel. | D16: ACTOM Protection & Control | E16: ACTOM Protection & Control | F16: Swing frame panel of dimensions: 2400mm high x 800mm wide x 600mm deep suitable for top or bottom entry of cables. This will be used for Bottom Entry Cables. | G16: 4600039646 | H16: See Ordering Schedule | I16: 224951 | J16: To Order | K16: R 13,500.00 | L16: =K16*B16 -> 0 | M16: Y
B17: Under Frequency Load Shedding Scheme (UFLS)
A18: 12 | B18: 0 | C18: 4LS-1101 Under Frequency Load Shedding Protection Scheme (Serial SCADA only). | D18: Alstom | E18: Alstom | F18: SCADA only via RS-485 serial interface (i.e. traditional hardwired supervisory alarms and controls are NOT provided). | G18: 4600050463 | H18: See Ordering Schedule | I18: 404058 | J18: To Order | K18: R 30,400.00 | L18: =K18*B18 -> 0 | M18: Y | N18: To be housed in the panel (item 13).
A19: 13 | B19: 0 | C19: 19' Swing frame panel. | D19: Alstom | E19: Alstom | F19: Swing frame panel of dimensions: 2400mm high x 800mm wide x 600mm deep suitable for top or bottom entry of cables | G19: 4600050463 | H19: See Ordering Schedule | I19: 404074 | J19: To Order | K19: R 13,500.00 | L19: =K19*B19 -> 0 | M19: Y
B20: METERING
B21: STATS METERING
A22: 1 | C22: Meter module Plate | D22: Out to tender | E22: Out to tender | F22: Meter Module (14U)- MODULE, METERING STD METER SUBPANEL D9400 | G22: NO | H22: See Ordering Schedule | I22: 175685 | J22: To Order | K22: R 7,000.00 | L22: =K22*B22 -> 0 | M22: Y
A23: 1 | B23: 1 | C23: Meter | D23: Various | E23: Various | F23: METER 3 PH CL0.5 1A RS485 D9420 | G23: NO | H23: See Ordering Schedule | I23: 242580 | J23: To Order | K23: R 4,000.00 | L23: R 4,000.00 | M23: Y
A24: 3 | C24: Cellular Modem | D24: Truteq | E24: Truteq | F24: MODEM, METERING TRUCOM SMARTOO D9503 | G24: NO | H24: See Ordering Schedule | I24: 223364 | J24: To Order | K24: R 3,000.00 | L24: 0 | M24: Y
A25: 2 | B25: 1 | C25: MODULE, MODEM S/PANEL D9404 | D25: Truteq | E25: Truteq | F25: MODULE TO BE USED TO MOUNT THE CELL MODEM EQUIPMENT | G25: NO | H25: See Ordering Schedule | I25: 0230645 | J25: To Order | K25: R 4,000.00 | L25: R 4,000.00 | M25: Y
A26: 5 | C26: Swing Frame Panel | D26: World Power Products | E26: World Power Products | F26: To be used as the metering panel. | G26: 4600036012 | H26: see schedule | I26: 402613 | J26: To Order | K26: R 9,000.00 | L26: 0 | M26: Y
A27: 6 | C27: SIM Card | E27: Innocent Mdletshe (031 710 5504) | F27: SIM Card for Cellular Modem | G27: NO | H27: Innocent Mdletshe (031 710 5504) | I27: N/A | J27: To Order | K27: R 5.00 | L27: 0 | M27: N
B28: 0 | C28: Voltage Selection Module | F28: Voltage selection module D | H28: Module, Volt. Selection D D9401 | I28: 175688 | J28: To Order | K28: R 9,500.00 | L28: 0 | M28: Y
A29: 3 | B29: 0 | C29: 7U Blanking Plate | D29: World Power Products | E29: World Power Products | F29: 7U Blanking Plate | G29: 4600036012 | H29: See Ordering Schedule | I29: 401958 | J29: To Order | K29: R 100.00 | L29: 0 | M29: Y
A30: 4 | B30: 0 | C30: 3U Blanking Plate | D30: World Power Products | E30: World Power Products | F30: PLATE, BLANKING PROT SCHEME 3U M/S D9141 | G30: 4600036012 | H30: See Ordering Schedule | I30: 401952 | J30: To Order | K30: R 70.00 | L30: 0 | M30: Y
A31: 3 | B31: 10 | C31: Cage Nuts, Bolts | D31: World Power Products | E31: World Power Products | F31: M6 Cage nuts, bolts with 6mm sealing washer | G31: 4600036012 | H31: See Ordering Schedule | I31: 401414 | J31: To Order | K31: R 5.00 | L31: R 50.00 | M31: Y
B32: DC SUPPLY
B33: 110V DC Battery Bank
C34: CELL, NICD 1.2V 75AH VTX1 M75 D9308 | D34: Alcad | E34: ALKALINE BATTERIES | F34: CELL, NICD 1.2V 75AH VTX1 M75 D9308 | G34: 4600041171 | H34: See Ordering Schedule | I34: 256101 | J34: To Order | K34: R 655.00 | L34: =B34*K34 -> 0 | M34: Y
C35: CONNECTORS, VTX BATT LINK SET 3 | D35: Alcad | E35: ALKALINE BATTERIES | F35: CONNECTORS, VTX BATT LINK SET 3 | G35: 4600041171 | H35: See Ordering Schedule | I35: 256348 | J35: To Order | K35: R 700.00 | L35: =B35*K35 -> 0 | M35: Y
C36: Battery Bank Cabinet | D36: Alcad | E36: ALKALINE BATTERIES | F36: CABINET, BATT NICD 88C SA TYPE 3 | G36: 4600041171 | H36: See Ordering Schedule | I36: 256354 | J36: To Order | K36: R 16,700.00 | L36: =B36*K36 -> 0 | M36: Y
B37: 110V DC LIGHTS
A38: 4 | B38: 4 | C38: 110DC Light | F38: 110DC Light | G38: NO | J38: To Order | K38: R 1,000.00 | L38: =B38*K38 -> R 4,000.00 | M38: N
A39: 5 | B39: 1 | C39: 110DC Lights Switch | F39: 110DC Lights Switch | G39: NO | J39: To Order | K39: R 300.00 | L39: =B39*K39 -> R 300.00 | M39: N
B40: TELECONTROL
B41: D20RTU
A42: 6 | B42: 1 | C42: RTU D20 CONFIG 11 1MOXA D20C KRONE D9653 | D42: IST | E42: IST | F42: Config 11 Krone D20 RTU, 1 D20C, 1 Moxa | G42: 4600048574 | H42: ISTE-00011 | I42: 250318 | J42: To Order | K42: R 110,000.00 | L42: =K42*B42 -> R 110,000.00 | M42: Y | N42: All D20RTU associated equipment to be housed in the D20RTU Panel.
A43: 7 | B43: 1 | C43: Power Supply | D43: IST | E43: IST | F43: IST GE 110 VDC PSU HIGH POWER 19 INCH RACKMOUNT | G43: 4600048574 | H43: ISTE-10700 | I43: 0248402 | J43: To Order
A44: 8 | B44: 1 | C44: D20 Cabinet | D44: IST | E44: IST | F44: PB8 800w x 600d cabinets with removable sides, swing frame, “G” rails, earth studs, | G44: 4600048574 | H44: ISTE-40120 | I44: 213366 | J44: To Order
B45: Digital Radio
A46: 9 | B46: 1 | C46: TRIO DIGITAL RADIOS ER450E series Generation ll | D46: Eskom Telecommunications 031 710 5420. (Vendor 11051059) | E46: Eskom Telecommunications 031 710 5420. (Vendor 11051059) | F46: TRIO DIGITAL RADIOS ER450E series Generation ll Model No: ER450-63E01-DH0, with diagnostics option installed | H46: See Ordering Schedule | I46: 225674 | J46: To Order | K46: R 7,500.00 | L46: =K46*B46 -> R 7,500.00 | M46: Y
A47: 10 | B47: 1 | C47: MATERIALS - RS232 adaptor cable for TRIO radio ER450 to RTU | D47: Eskom Telecommunications 031 710 5420. (Vendor 11051059) | E47: Eskom Telecommunications 031 710 5420. (Vendor 11051059) | F47: MATERIALS - RS232 adaptor cable for TRIO radio ER450 to RTU | J47: To Order | K47: R 100.00 | L47: =K47*B47 -> R 100.00 | M47: Y
B48: RTU Antenna
A49: 11 | B49: 1 | C49: 3 ELEMENT WEBB ANTENNA WITH CASTING HUB. | D49: WEBB INDUSTRIES | E49: WEBB INDUSTRIES | F49: WEBB ANTENNA (380 - 470 MHz). Y425/3 . TUNED TO CENTRE FREQ. 410MHZ. 3 ELEMENT WITH CASTING HUB. | J49: To Order | K49: R 700.00 | L49: =K49*B49 -> R 700.00 | M49: Y | N49: The 6m aluminium pole is already installed on site.
A50: 12 | B50: 1 | C50: 3M RUBBER TAPE | D50: WEBB INDUSTRIES | E50: WEBB INDUSTRIES | F50: 3M RUBBER TAPE | J50: To Order | K50: R 80.00 | L50: R 80.00 | M50: Y | N50: Roll
A51: 13 | B51: 1 | C51: 2 Metre LEAD COAXIAL CABLE FLYLEAD WITH N FEMALE BULKHEAD TO N-TYPE MALE | D51: WEBB INDUSTRIES | E51: WEBB INDUSTRIES | F51: 2 Metre FLYLEAD LMR195 COAXIAL CABLE PREMADE WITH N FEMALE BULKHEAD (J01021A0147) TO N-TYPE MALE (J01020A0108) CONNECTORS | J51: To Order | K51: R 180.00 | L51: R 180.00 | M51: Y | N51: 2 metres
A52: 14 | B52: 1 | C52: 30 METRE LMR 400 WITH N-MALE JO1020A0127 AND N-FEMALE J01021AA0155 TELEGAERTNER CONNECTORS | D52: WEBB INDUSTRIES 011 444 2299 | E52: WEBB INDUSTRIES 011 444 2299 | F52: 30 METRE LMR 400 WITH N-MALE JO1020A0127 AND N-FEMALE J01021AA0155 TELEGAERTNER CONNECTORS | J52: To Order | K52: R 8,400.00 | L52: R 8,400.00 | M52: Y | N52: 30 metres
B53: 1 | C53: ALUMINIUM POLE | D53: WEBB INDUSTRIES 011 444 2299 | E53: WEBB INDUSTRIES 011 444 2299 | F53: 6m ALUMINIUM POLE 50mm DIAMETER 5mm WALL THICKNESS | J53: To Order | K53: R 1,000.00 | L53: R 1,000.00 | M53: Y
A54: 15 | B54: 10 | C54: CUMFY CLAMPS TK 78-2. (WITH CLIPS) | D54: WEBB INDUSTRIES 011 444 2299 | E54: WEBB INDUSTRIES 011 444 2299 | F54: CUMFY CLAMPS TK 78-2. (WITH CLIPS) | J54: To Order | K54: R 11.70 | L54: R 117.00 | M54: Y
A55: 16 | B55: 2 | C55: BANDIT STRAP | D55: WEBB INDUSTRIES 011 444 2299 | E55: WEBB INDUSTRIES 011 444 2299 | F55: BANDIT STRAP | J55: To Order | K55: R 18.00 | L55: R 36.00 | M55: Y | N55: in metres (m)
A56: 17 | B56: 10 | C56: BANDIT CLIPS | D56: WEBB INDUSTRIES 011 444 2299 | E56: WEBB INDUSTRIES 011 444 2299 | F56: BANDIT CLIPS | J56: To Order | K56: R 2.00 | L56: R 20.00 | M56: Y
A57: 18 | B57: 1 | C57: 0.5 mm BOOTLACE FERRULES | D57: WEBB INDUSTRIES 011 444 2299 | E57: WEBB INDUSTRIES 011 444 2299 | F57: 0.5 mm BOOTLACE FERRULES | J57: To Order | K57: R 23.00 | L57: R 23.00 | M57: Y | N57: Pocket
B58: Door Switch and other Telecontrol associated material
A59: 19 | B59: 1 | C59: DOOR ALARM | D59: Omron | E59: Electric World | F59: Omron limit switch WLNJ-Y :- order from Electric World Pinetown - 031 716 9300 | J59: To Order | K59: R 600.00 | L59: =K59*B59 -> R 600.00 | M59: N | N59: For Control room.
A60: 20 | B60: 2 | C60: MEDIUM CABLE TIES (WHITE) | D60: NOT OBLIGATORY | E60: NOT OBLIGATORY | F60: MEDIUM CABLE TIES (WHITE) | H60: PACKETS | J60: To Order | K60: R 30.00 | L60: =K60*B60 -> R 60.00 | M60: N
A61: 21 | B61: 1 | C61: SMALL CABLE TIES (WHITE) | D61: NOT OBLIGATORY | E61: NOT OBLIGATORY | F61: SMALL CABLE TIES (WHITE) | H61: PACKETS | J61: To Order | K61: R 20.00 | L61: =K61*B61 -> R 20.00 | M61: N
B62: CABLES
A63: 22 | B63: 1000 | C63: 4 core 2,5mm | D63: Aberdare | E63: Various | F63: CABLE,ELECT:BVX4DCV 1,0KV 4C;CU;2.5 MM2 | G63: Yes | H63: Order via stores | I63: 400646 | J63: To Order | K63: R 25.00 | L63: =K63*B63 -> R 25,000.00 | M63: Y | N63: Cable length in metres (m)
A64: 23 | B64: 1000 | C64: 4 core 4mm | D64: Aberdare | E64: Various | F64: CABLE,ELECT:BVX4ECV 1,0KV 4C;CU;4 MM2 | G64: Yes | H64: Order via stores | I64: 404764 | J64: To Order | K64: R 34.00 | L64: R 34,000.00 | M64: Y | N64: Cable length in metres (m)
A65: 24 | B65: 50 | C65: 2 core, 16mm | D65: Aberdare | E65: Various | F65: CABLE,ELECT:BVX2HCV 1,0KV 2C;CU;16 MM2 | G65: Yes | H65: Order via stores | I65: 14474 | J65: To Order | K65: R 45.00 | L65: R 2,250.00 | M65: Y | N65: Cable length in metres (m)
A66: 25 | B66: 150 | C66: 4 core, 16mm | D66: Aberdare | E66: Various | F66: CABLE,ELECT:BVX4HCV 1,0KV 4C;CU;16 MM2 | G66: Yes | H66: Order via stores | I66: 404766 | J66: To Order | K66: R 60.00 | L66: R 9,000.00 | M66: Y | N66: Cable length in metres (m)
A67: 26 | B67: 500 | C67: 12 core 2.5mm | D67: Aberdare | E67: Various | F67: CABLE,ELECT:BVX12DCV 1,0KV 12C;CU;PVC | G67: Yes | H67: Order via stores | I67: 404761 | J67: To Order | K67: R 60.00 | L67: R 30,000.00 | M67: Y | N67: Cable length in metres (m)
A68: 27 | B68: 1000 | C68: 19 core 2.5mm | D68: Aberdare | E68: Various | F68: CABLE,ELECT:BVX19DCV 1.0KV 19C;CU;PVC | G68: Yes | H68: Order via stores | I68: 404118 | J68: To Order | K68: R 80.00 | L68: R 80,000.00 | M68: Y | N68: Cable length in metres (m)
A69: 28 | B69: 30 | C69: 10 Pair 0.5mm | D69: Aberdare | E69: Various | F69: CABLE,TEL TPH10AV 10PR 0.5mmDIA D9161 (Armored Cable) | G69: Yes | H69: Order via stores | I69: 404123 | J69: To Order | K69: R 30.00 | L69: R 900.00 | M69: Y | N69: Cable length in metres (m)
A70: 29 | B70: 30 | C70: 2 Pair 0.5mm | D70: Aberdare | E70: Various | F70: CABLE,TEL TPH2AV 2PR 0.5mm DIA D9161 (Armored Cable) | G70: Yes | H70: Order via stores | I70: 403126 | J70: To Order | K70: R 25.00 | L70: R 750.00 | M70: Y | N70: Cable length in metres (m)
A71: 30 | B71: 30 | C71: 4 Pair 0.762mm | D71: Jaycor International Pty Ltd | E71: Jaycor International Pty Ltd | F71: Belden # 3109 22AWG x 4PR Overall Foil + TC BRD screen, black UV resistant RS 485 cable. Stock Code: BLDN3109A. Armored Cable | G71: Yes | H71: See Ordering Schedule | I71: 588799 | J71: To Order | K71: R 90.00 | L71: R 2,700.00 | M71: Y | N71: Cable length in metres (m)
A72: 31 | B72: 80 | C72: No 1 Cable Gland | D72: Pratley | E72: Various | F72: CABLE GLAND ADJUST No.1 D3070 | G72: Yes | H72: Order via stores | I72: 168367 | J72: To Order | K72: R 20.00 | L72: R 1,600.00 | M72: Y
A73: 32 | B73: 50 | C73: No 2 Cable Gland | D73: Pratley | E73: Various | F73: CABLE GLAND ADJUST No.2 D3070 | G73: Yes | H73: Order via stores | I73: 168279 | J73: To Order | K73: R 25.00 | L73: R 1,250.00 | M73: Y
B74: AUXILLARIES
A75: 33 | B75: 1 | C75: VRW20 Junction Box , with 8 circuit VT insert (Fitted) (Complete JB) 304 stainless steel option. | D75: Contrep c.c. | E75: Contrep c.c. | F75: VRW20 Junction Box, with 8 circuit VT insert (Fitted) (Complete JB) 304 stainless steel option | G75: 4600036004 | H75: See Ordering Schedule | I75: 186950 | J75: To Order | K75: R 7,100.00 | L75: =K75*B75 -> R 7,100.00 | M75: Y
C76: CT Junction Box | D76: Contrep c.c. | E76: Contrep c.c. | F76: VRW20 Junction box, 6 circuit CT insert. (fitted) (Complete JB) 304 stainless steel option | G76: 4600036004 | H76: See Ordering Schedule | I76: 186961 | J76: To Order | K76: R 6,000.00 | L76: =K76*B76 -> 0 | M76: Y
A77: 34 | B77: 1 | C77: AC Distribution Board | D77: SABI, Switchboard | E77: SABI, Switchboard | F77: AC Distribution Board | G77: No | H77: See drawing set 66 sheets 1-3 | I77: - | J77: To Order | K77: R 13,000.00 | L77: =K77*B77 -> R 13,000.00 | M77: Y
C78: Transformer Junction Box | D78: Contrep | E78: Contrep | F78: Transformer junction box | G78: No | J78: To Order | K78: R 13,000.00 | L78: =K78*B78 -> 0 | M78: Y
B79: LABELING
A80: 35 | C80: LABELS | F80: To be ordered from New Germany Test House. | H80: SEE Schedule attached Label Requisition | M80: N
B81: FIBRE
A82: 36 | B82: 200 | C82: 12 core Heavy Duty Duct fibre cable | D82: Various | E82: Various | F82: 12 core Heavy Duty Duct fibre cable 50/125nm Multimode (non-metallic) | G82: Buy Out | J82: To Order | K82: R 25.00 | L82: =K82*B82 -> R 5,000.00 | M82: Y | N82: Cable length in metres (m)
A83: 37 | B83: 200 | C83: Conduit for fiber run (High Density Poly Ethelene) | D83: Various | E83: Various | F83: Optex duct (Direct burial duct – OD/ID: 32/26mm) | G83: Buy Out | H83: See Ordering Schedule | J83: To Order | K83: R 30.00 | L83: =K83*B83 -> R 6,000.00 | M83: Y | N83: Length in metres (m)
A84: 38 | B84: 1 | C84: Fibre Joint Enclosure | D84: Various | E84: Various | F84: Plastic/Metal dome fibre splice closure | G84: Buy Out | H84: See Ordering Schedule | J84: To Order | K84: R 3,500.00 | L84: =K84*B84 -> R 3,500.00 | M84: Y
A85: 39 | B85: 1 | C85: Splice termination box | D85: Telegartner | E85: Telegartner | F85: STX mounting rail distributor with 6xST Duplex, splice cassette, Pigtails, cable strain relief [12x G50/125 OM2, ST] | G85: Buy Out | H85: See Ordering Schedule | J85: To Order | K85: R 1,000.00 | L85: =K85*B85 -> R 1,000.00 | M85: Y
L95: =SUM(L22:L31,L38:L39,L42,L46:L47,L49:L57,L59:L61,L63:L73,L75:L78,L82:L85) -> R 364,236.00

Sheet PIC (hidden)
C3: CRA Cost | D3: DRA Cost | E3: Variance | F3: % Variance | G3: Explanation
B4: Engineering Cost | C4: R 296,109.84 | D4: ='Cost Summary'!E10 -> R 307,274.60 | E4: =C4-D4 -> R -11,164.76 | F4: =(1-(D4/C4)) -> -3.77% | G4: The Engineering Cost was under estimated at CRA. Primary Plant costing was estimated too low.
B5: Material | C5: R 1,479,825.99 | D5: =SUM('Cost Summary'!E6:E7) -> R 1,655,654.00 | E5: R -175,828.01 | F5: -11.88% | G5: The Primary Plant Material was under estimated at CRA. New estimates were issued from Primary Plant Dept at DRA.
B6: Internal Contracts | C6: R 356,178.15 | D6: ='Cost Summary'!E16 -> R 65,000.00 | E6: R 291,178.15 | F6: 81.75% | G6: Internal Contracts, External Contracts, and Commissioning was under estimated at CRA. No External Contracts for this project, Commissioning has now formed part of Internal Contracts at DRA.
B7: External Contracts | C7: R 689,377.06 | D7: ='Cost Summary'!E28 -> 0 | E7: R 689,377.06 | F7: 100.00%
B8: Commissioning | C8: R 34,468.85 | D8: 0 | E8: R 34,468.85 | F8: 100.00%
B9: Overheads | C9: R 314,155.59 | D9: ='Cost Summary'!E36 -> R 372,396.26 | E9: R -58,240.67 | F9: -18.54% | G9: Overheads increased at DRA due to increase in total project cost.
B10: IDC | C10: R 139,944.75 | D10: ='Cost Summary'!E38 -> 0 | E10: R 139,944.75 | F10: 100.00% | G10: IDC is calculated over 13 months at DRA vs 9 months at CRA. Also increased due to escalated total project cost.
B11: Total Project Cost | C11: =SUM(C4:C10) -> R 3,310,060.23 | D11: =SUM(D4:D10) -> R 2,400,324.86 | E11: R 909,735.37 | F11: 27.48%
C14: =SUM(C6:C8) -> R 1,080,024.06
